Cogmind - Beta 17 @@@ ROGUE MODE // 2026.06.29 @ 22:57:30 Player: Dadrick Result: Escaped! Performance ------------- Evolutions (9) 4500 Regions Visited (31) 6200 Robots Destroyed (467) 2335 Value Destroyed (22163) 22163 Prototype IDs (70) 1400 Alien Tech Used (4) 800 Bonus (18500) 18500 TOTAL SCORE: 55898 Bonus ------- High Alert Combat Kills 5178 Follower Combat Kills 3839 Entered Garrisons 800 Used RIF Installer 2500 Met Zhirov 300 Acquired SGEMP 2000 Delivered SGEMP 2000 Win 3000 Friendly Fire -1117 Cogmind --------- Core Integrity 1020/1600 Matter 275/300 Energy 93/100 System Corruption 15% Temperature Cool (3) Movement Treading (145) Location To Epsilon Eridani Parts ------- > --- POWER (2) -------- (None) > --- PROPULSION (8) --- Biometal Heavy Treads Advanced Heavy Siege Treads > --- UTILITY (11) ----- Experimental Signal Interpreter System Mapper Experimental System Shield > --- WEAPON (4) ------- Enhanced Nova Cannon Enhanced Hardcell Cannon Compact Linear Accelerator > --- INVENTORY (5) ---- Light Antimatter Reactor Micro Antimatter Reactor Nanosword Peak State ------------ > --- POWER ------------ Micro Antimatter Reactor Micro Antimatter Reactor > --- PROPULSION ------- Armored Heavy Treads Advanced Heavy Treads Biometal Heavy Treads Biometal Heavy Treads > --- UTILITY ---------- Advanced Heat Sink Advanced Heat Sink Advanced Sensor Array Experimental Signal Interpreter Layered Heavy Armor Plating Layered Heavy Armor Plating Advanced Shield Generator System Mapper Experimental System Shield > --- WEAPON ----------- Enhanced Nova Cannon Enhanced Nova Cannon Sigix Broadsword > --- INVENTORY -------- ECM Suite Transdimensional Reconstructor Enhanced Hardcell Cannon Fusion Bomb Launcher Nanosword [Rating: 204] Favorites ----------- Power Light Nuclear Core Engine Light Angular Momentum Engine Power Core Light Nuclear Core Reactor Light Antimatter Reactor Propulsion Carbon-fiber Leg Treads Heavy Treads Leg Carbon-fiber Leg Hover Unit Cooled Gravmag System Flight Unit Nuclear Pulse Array Utility Large Storage Unit Device Advanced Sensor Array Storage Large Storage Unit Processor Enhanced Optical Array Hackware Relay Coupler [Sentry] Protection Improved Medium Armor Plating Artifact Phase Redirector Weapon Cooled Particle Cannon Energy Gun Cooled Plasma Rifle Energy Cannon Cooled Particle Cannon Ballistic Gun Gauss Rifle Ballistic Cannon Heavy Flak Cannon Launcher Rocket Launcher Special Weapon Improved Remote Datajack Impact Weapon Maul Slashing Weapon Power Sword Piercing Weapon Enhanced Force Lance Build | -11 -10 -10 -9 -9 -9 -8 -8 -8 -8 -7 -7 -7 -6 -5 -5 -5 -5 -5 -5 -4 -4 -4 -4 -4 -4 -4 -3 -3 -2 -2 -1 ------- Run | Yrd Mat Min Mat Min Exi Min Mat Gar Mat Fac Gar Fac Fac Fac Was Fac Upp Upp Zhi Pro Fac Was Fac Gar Fac Gar Res Tes Res Qua Acc Slots Evolved 18 | . . . 2 . . . 2 . . 2 . . 2 2 . . . . . . 2 . . . . . 2 . 2 . 2 Power 1 | . . . . . . . . . . . . . . 1 . . . . . . . . . . . . . . . . . Propulsion 6 | . . . 1 . . . 1 . . . . . 1 1 . . . . . . . . . . . . . . 1 . 1 Utility 9 | . . . . . . . 1 . . 2 . . 1 . . . . . . . 2 . . . . . 1 . 1 . 1 Weapon 2 | . . . 1 . . . . . . . . . . . . . . . . . . . . . . . 1 . . . . Parts Attached 404 | 7 17 1 10 1 1 . 37 21 6 1 21 1 29 13 13 16 1 . 11 . 20 3 2 10 3 41 25 35 20 5 33 Power 52 | 1 3 . 1 . . . 3 3 1 . 3 . 2 4 2 5 . . 2 . . . . 2 . 7 2 3 4 . 4 Engine 17 | 1 2 . 1 . . . 2 . 1 . . . 2 3 . 1 . . 1 . . . . . . . . 1 1 . 1 Core 17 | . 1 . . . . . 1 3 . . 3 . . 1 1 3 . . . . . . . 1 . 2 . . 1 . . Reactor 18 | . . . . . . . . . . . . . . . 1 1 . . 1 . . . . 1 . 5 2 2 2 . 3 Propulsion 120 | 2 5 1 5 1 1 . 17 7 2 . 7 1 9 3 4 1 . . 4 . 5 . . . 3 9 5 13 5 . 10 Treads 15 | . . . . . . . . . . . . . . . 4 1 . . . . . . . . . . . 1 . . 9 Leg 78 | 2 5 1 5 1 1 . 17 7 2 . 7 1 9 2 . . . . . . 1 . . . . 7 5 5 . . . Wheel . | . . . . . . . . . . . . . . . . . . . . . . . . . . . . . . . . Hover 17 | . . . . . . . . . . . . . . . . . . . 4 . 4 . . . 3 2 . 4 . . . Flight 10 | . . . . . . . . . . . . . . 1 . . . . . . . . . . . . . 3 5 . 1 Utility 131 | 2 2 . 1 . . . 7 4 3 1 6 . 12 4 3 5 . . 3 . 12 2 . 6 . 15 10 10 8 3 12 Device 54 | 1 1 . 1 . . . 4 . . 1 3 . 1 2 2 2 . . . . 6 1 . 5 . 6 3 3 4 . 8 Storage 9 | 1 1 . . . . . . . 1 . . . 1 1 . 1 . . . . 2 . . . . . 1 . . . . Processor 14 | . . . . . . . 1 2 . . . . 2 . . . . . . . 1 1 . . . . 1 4 1 . 1 Hackware 28 | . . . . . . . . . . . 2 . 5 1 . . . . 2 . 3 . . . . 6 3 2 2 2 . Protection 25 | . . . . . . . 2 2 2 . 1 . 3 . 1 2 . . 1 . . . . 1 . 3 2 1 1 . 3 Artifact 1 | . . . . . . . . . . . . . . . . . . . . . . . . . . . . . . 1 . Weapon 101 | 2 7 . 3 . . . 10 7 . . 5 . 6 2 4 5 1 . 2 . 3 1 2 2 . 10 8 9 3 2 7 Energy Gun 17 | . 2 . . . . . 3 . . . 2 . . . . . . . . . . . 1 . . 3 4 2 . . . Energy Cannon 24 | . 3 . 1 . . . . . . . . . 2 . 1 3 1 . 1 . . . 1 1 . 2 1 3 1 . 3 Ballistic Gun 18 | 2 1 . 1 . . . 7 . . . 1 . . . . . . . . . . . . . . 4 2 . . . . Ballistic Cannon 16 | . . . . . . . . 4 . . 1 . 1 1 2 . . . . . . 1 . 1 . . 1 1 . 1 2 Launcher 4 | . . . 1 . . . . . . . . . . . . . . . . . . . . . . 1 . . . . 2 Special Weapon 6 | . . . . . . . . . . . 1 . 2 1 . . . . 1 . . . . . . . . . 1 . . Impact Weapon 5 | . 1 . . . . . . 1 . . . . . . . 2 . . . . 1 . . . . . . . . . . Slashing Weapon 9 | . . . . . . . . 2 . . . . 1 . . . . . . . 2 . . . . . . 3 . 1 . Piercing Weapon 2 | . . . . . . . . . . . . . . . 1 . . . . . . . . . . . . . 1 . . Special Melee Weapon . | . . . . . . . . . . . . . . . . . . . . . . . . . . . . . . . . Unidentified Prototypes 37 | . 1 . 1 . . . 1 . . . . . 1 . 3 2 . . 4 . 5 . 1 . . . 2 11 1 2 2 Corrupted Parts 1 | . . . . . . . . . . . . . . . . . . . . . . . . . . 1 . . . . . System Corruption 5 | . . . . . . . . . . . . . . . . . . . . . . . . . . 5 . . . . . Parts Lost 146 | . 4 . 4 . . . 9 6 . 1 7 . 18 7 . 3 1 . . . 1 . . . . 20 7 24 11 2 21 Power 25 | . 1 . 1 . . . 1 1 . . 1 . 1 2 . 1 . . . . . . . . . 5 2 5 1 . 3 Propulsion 42 | . 2 . 1 . . . 3 3 . . 3 . 10 3 . . . . . . 1 . . . . 4 . 6 2 1 3 Utility 45 | . . . 1 . . . 2 1 . . 2 . 2 1 . 1 1 . . . . . . . . 6 1 10 6 1 10 Weapon 34 | . 1 . 1 . . . 3 1 . 1 1 . 5 1 . 1 . . . . . . . . . 5 4 3 2 . 5 Highest Loss Streak 10 | . 4 . 2 . . . 5 2 . 1 3 . 8 4 . 3 1 . . . 1 . . . . 7 6 8 8 2 10 To Critical Strikes 1 | . . . . . . . . . . . . . . . . . . . . . . . . . . . . . . . 1 Average Backups 11 | 1 6 14 14 15 14 14 13 13 14 13 13 14 8 5 5 8 9 10 9 10 11 14 14 14 14 13 17 14 3 2 4 Power 1 | . 1 1 2 2 1 1 . 1 1 1 1 1 . . . . 1 1 1 1 1 1 1 1 1 . 1 . . . 1 Propulsion 1 | . 2 4 3 4 3 3 2 1 1 2 1 2 . . . . . . . . . 2 2 2 1 . 1 1 . . . Utility 4 | . . 3 3 3 4 5 5 7 7 5 6 9 5 1 2 4 3 4 3 4 4 6 6 5 6 6 9 5 . . . Weapon 3 | . 3 4 5 5 5 5 4 3 4 4 3 1 1 1 1 2 4 4 3 3 3 3 3 3 4 4 2 5 2 . 2 Tool/Special . | . . . . . . . . . . . . . . . . . . . . . . . . . . . . . . . . Unused Backups 60 | . 2 . 4 . 2 . 8 4 4 . 4 . 7 2 1 3 . . 1 . 4 2 1 3 1 . 1 3 . . 3 Power 10 | . . . 1 . 1 . 1 1 . . . . 1 . . 1 . . . . . . 1 . . . . . . . 3 Propulsion 13 | . 1 . . . . . 4 2 1 . 1 . . . . . . . . . 1 1 . 1 1 . . . . . . Utility 22 | . . . 2 . . . 2 1 2 . 1 . 6 1 . 1 . . 1 . 2 . . . . . 1 2 . . . Weapon 13 | . 1 . 1 . 1 . 1 . 1 . 2 . . 1 1 . . . . . 1 1 . 2 . . . . . . . Tool/Special 2 | . . . . . . . . . . . . . . . . 1 . . . . . . . . . . . 1 . . . Average Slot Usage (%) 87 | . 97 100 99 100 100 100 97 93 100 99 92 92 75 57 76 78 78 82 69 88 90 100 99 99 99 96 95 85 59 60 67 Engine 2 | . 8 . 2 11 11 11 8 . 7 7 . . 2 2 5 . . . 1 5 5 5 5 4 . . . . . . . Core 3 | . 4 14 8 . . . . 8 1 . 6 7 . . 3 2 5 5 5 5 5 5 5 5 10 2 . . 1 1 . Reactor 2 | . . . . . . . . . . . . . . . . 6 5 5 3 . . . . . . 7 8 5 1 3 6 Treads 3 | . . . . . . . . . . . . . . . 15 17 17 17 10 . . . . . . . . . . . 14 Leg 18 | . 27 28 33 33 33 33 35 35 36 29 29 30 26 13 . . . . . . . . . . . 17 28 17 . . . Hover 3 | . . . . . . . . . . . . . . . . . . . 8 23 25 31 31 30 30 12 . 2 . . . Device 10 | . 12 14 11 11 11 11 10 2 1 14 14 15 13 5 10 9 9 17 15 5 9 15 15 15 21 11 12 11 5 3 14 Storage 6 | . 14 14 11 11 11 11 9 9 9 7 7 7 3 2 . 4 5 5 5 5 5 5 5 5 5 7 4 3 . . . Processor 7 | . . . . . . . 3 8 9 7 3 . 3 11 11 11 11 11 11 11 10 10 10 10 10 10 9 9 15 13 5 Hackware 4 | . . . . . . . . . . . 3 7 12 12 6 . . . . 5 10 10 10 4 . 5 6 7 8 15 9 Protection 3 | . . . . . . . 3 7 7 7 7 7 4 . 2 4 2 . . 5 1 . . 4 5 4 4 2 . . 2 Energy Gun 1 | . 5 . . . . . 7 . . . 3 . . . 2 . . . . . . . . . . 5 3 11 . . . Energy Cannon 5 | . 12 28 22 22 22 22 3 . . . . . . . 1 2 16 17 2 11 10 10 9 9 10 2 3 . 2 . 5 Ballistic Gun 1 | . 9 . . . . . 12 . . . 5 . . . . . . . . . . . . . . 3 6 . . . . Ballistic Cannon 4 | . . . . . . . . 13 26 20 1 7 2 1 5 8 . . . . . . . . . . . . . 1 5 Impact Weapon 1 | . . . 10 11 11 11 2 . . . . . . . . 3 . . . 5 2 . . . . . . . . . . Slashing Weapon 2 | . . . . . . . . 7 . 1 4 5 2 4 . . . . . . 2 5 5 5 5 1 1 3 4 6 1 Peak Build Rating 204 | 7 16 16 23 23 22 22 43 47 48 53 61 47 61 59 104 107 98 96 91 84 123 123 127 127 127 128 143 156 140 147 204 Average Rating 75 | 6 10 16 20 20 21 22 35 42 46 51 55 44 43 41 85 100 95 96 78 84 102 121 122 119 125 114 133 131 110 128 164 On Entrance 68 | . 7 16 16 23 20 22 22 43 46 47 53 47 44 29 23 104 96 96 96 84 84 121 122 123 124 127 121 142 80 115 112 Avg Prop Armor Cover (%) 22 | . . . . . . . . . . 2 2 . 38 32 3 . . . . . . . . . . 5 . 24 4 . 2 Naked Turns . | . . . . . . . . . . . . . . . . . . . . . . . . . . . . . . . . Heaviest Build 119 | 11 34 34 41 41 41 41 49 56 60 66 66 51 80 38 77 90 75 62 50 43 58 65 65 73 70 85 119 114 46 46 100 Greatest Support 300 | 20 20 20 33 33 30 30 72 72 65 59 60 53 86 74 210 210 210 210 210 44 71 71 71 86 73 138 151 161 59 34 300 Greatest Overweight (x) 23 | . 2 1 1 1 1 1 1 1 1 2 1 1 23 1 . . . . 3 . 1 . . 1 1 2 . 6 . 1 . Average Overweight (x) . | . . 1 1 1 1 1 . . . 1 . . . . . . . . . . . . . . . . . . . . . Largest Inventory Capacity 20 | 8 15 15 15 15 15 15 15 15 15 15 15 15 20 10 5 10 10 10 10 10 15 15 15 15 15 15 20 20 5 5 5 Average Capacity 12 | 7 9 15 15 15 15 15 15 15 15 15 15 15 10 7 5 9 10 10 10 10 11 15 15 15 15 15 19 17 5 5 5 Most Carried 20 | 2 12 15 15 15 15 15 15 15 15 15 15 15 15 8 5 10 10 10 10 10 15 15 15 15 15 15 20 20 5 5 5 Average Carried 11 | 1 6 14 14 15 14 15 14 14 14 14 13 15 8 5 4 8 9 10 9 10 11 14 14 14 14 13 17 16 4 4 4 Final Capacity 20 | 8 15 15 15 15 15 15 15 15 15 15 15 15 5 5 5 10 10 10 10 10 15 15 15 15 15 15 20 5 5 5 5 Final Carried 20 | 2 12 15 15 15 15 15 15 15 15 14 15 15 5 5 5 10 10 10 10 10 15 15 15 15 15 15 20 5 5 5 3 Class Distribution -------------------- 27% | Scavenger-Mutant 12% | Scavenger-Tank 10% | Scavenger-Assassin 7% | Mutant 6% | Bothacker-Mutant 5% | Scavenger-Gunner 3% | Hacker-Scout 3% | Hacker-Tank Dominant Class ---------------- Scavenger-Mutant | -10/Materials Scavenger-Mutant | -10/Mines Scavenger-Mutant | -9/Materials Scavenger-Mutant | -9/Mines Scavenger-Mutant | -9/Exiles Scavenger-Mutant | -8/Mines Gunner | -8/Materials Scavenger-Mutant | -8/Garrison Scavenger-Gunner | -8/Materials Scavenger-Tank | -7/Factory Scavenger-Mutant | -7/Garrison Bothacker-Mutant | -7/Factory Bothacker-Mutant | -6/Factory Assassin | -5/Factory Scavenger-Assassin | -5/Waste Scavenger-Assassin | -5/Factory Scavenger-Tank | -5/Upper Caves Scavenger-Tank | -5/Upper Caves Scavenger-Mutant | -5/Zhirov Scavenger-Scout | -4/Proximity Caves Hacker-Ninja | -4/Factory Hacker-Scout | -4/Waste Hacker-Scout | -4/Factory Scout | -4/Garrison Scout | -4/Factory Scavenger-Mutant | -4/Garrison Scavenger-Skirmisher | -3/Research Scavenger-Assassin | -3/Testing Hacker-Scout | -2/Research Hacker-Gladiator | -2/Quarantine Hacker-Tank | -1/Access Resources | -11 -10 -10 -9 -9 -9 -8 -8 -8 -8 -7 -7 -7 -6 -5 -5 -5 -5 -5 -5 -4 -4 -4 -4 -4 -4 -4 -3 -3 -2 -2 -1 ----------- Run | Yrd Mat Min Mat Min Exi Min Mat Gar Mat Fac Gar Fac Fac Fac Was Fac Upp Upp Zhi Pro Fac Was Fac Gar Fac Gar Res Tes Res Qua Acc Matter Collected 14596 | 322 271 10 260 40 10 . 1682 1259 1076 382 915 60 1010 780 185 1365 140 33 177 46 277 137 20 214 . 1147 468 739 306 371 894 Remotely . | . . . . . . . . . . . . . . . . . . . . . . . . . . . . . . . . Salvage Created 21668 | 178 765 96 808 133 66 . 2560 1405 582 274 1298 77 1280 690 160 1538 295 . 250 . 457 74 229 700 . 1310 778 2454 713 420 2078 Parts 946 | 12 44 8 44 3 1 . 121 85 36 7 46 1 64 33 5 55 11 . 7 . 14 4 8 44 . 52 20 78 40 11 92 Haulers Intercepted 24 | . 2 . 3 . . . 6 . 2 . . 1 . 1 . 2 . . . . 3 . 1 . . . . . 2 . 1 Recyclers Shooed 10 | . 3 . 1 . . . 2 . . . . . . . . 3 . . . . . . . . . . . . 1 . . Parts Field Recycled . | . . . . . . . . . . . . . . . . . . . . . . . . . . . . . . . . Retrieved Matter . | . . . . . . . . . . . . . . . . . . . . . . . . . . . . . . . . Parts Self-Destructed 16 | . . . . . . . . . . . . . . . . . 11 . 5 . . . . . . . . . . . . Prevented . | . . . . . . . . . . . . . . . . . . . . . . . . . . . . . . . . Parts Restored . | . . . . . . . . . . . . . . . . . . . . . . . . . . . . . . . . Kills | -11 -10 -10 -9 -9 -9 -8 -8 -8 -8 -7 -7 -7 -6 -5 -5 -5 -5 -5 -5 -4 -4 -4 -4 -4 -4 -4 -3 -3 -2 -2 -1 ------- Run | Yrd Mat Min Mat Min Exi Min Mat Gar Mat Fac Gar Fac Fac Fac Was Fac Upp Upp Zhi Pro Fac Was Fac Gar Fac Gar Res Tes Res Qua Acc Combat Hostiles Destroyed 318 | . 12 2 15 2 . . 37 41 12 9 28 2 20 7 . 21 7 . . . 3 . 2 13 . 22 5 23 . . 35 Melee 6 | . . . . . . . . . . . 2 . . 2 . . . . . . . . . . . . . 2 . . . Guns 84 | . 6 . . . . . 29 4 . . 25 . . . . . . . . . . . . . . 9 . 11 . . . Cannons 189 | . 6 2 10 1 . . 6 35 12 8 1 2 20 5 . 21 7 . . . 3 . 2 11 . 7 5 . . . 25 AOE 26 | . . . 2 . . . 2 2 . 1 . . . . . . . . . . . . . . . 6 . 3 . . 10 Classes Destroyed 22 | 2 4 2 2 . . . 3 1 . 1 . . . . 1 1 . . . . 1 . . 2 . . . 2 . . . Worker 25 | . . 2 1 . . . 3 . 1 . . . 5 2 . . . . . . 1 . . . . . . 5 3 . 2 Builder 30 | . 1 . . . . . 1 . 1 . . . 5 2 . 3 . . . . 2 . . . . . . 5 3 . 7 Tunneler 11 | 5 . 1 . . . . . . . . . 1 1 1 . . . . . . . . . . . . . . 2 . . Hauler 24 | . 2 . 3 . . . 6 . 2 . . 1 . 1 . 2 . . . . 3 . 1 . . . . . 2 . 1 Recycler 39 | 1 2 . . 1 . . 4 . 2 1 . . 5 3 . 3 . . . . . . . . . . 3 5 3 3 3 Mechanic 1 | . . . . . . . . . . . . . . . . 1 . . . . . . . . . . . . . . . Operator 4 | . . . . . . . 2 . . . . . 1 . . . . . . . . . . . . . . . . 1 . Watcher 11 | . 2 . . . . . 4 . . . 1 . 2 . . . . . . . . . . . . . . 2 . . . Swarmer 57 | . . 1 . . . . 3 6 3 . 4 . 8 4 . . 4 . . . . . . 5 . 3 . 4 . . 12 Cutter 3 | . . . . . . . . . . . . . . . . . . . . . . . . 3 . . . . . . . Saboteur 1 | . . . . . . . . . . . . . . . . . . . . . 1 . . . . . . . . . . Grunt 139 | . 12 1 9 2 . . 22 18 6 4 13 1 6 . . 7 3 . . . 1 . 2 2 . 11 1 7 . . 11 Brawler 4 | . . . . . . . . . . 1 . . 1 . . 1 . . . . . . . . . . 1 . . . . Duelist 9 | . . . 1 . . . 1 1 . 2 . . . . . 3 . . . . 1 . . . . . . . . . . Sentry 38 | . . . 5 . . . 8 11 3 . 7 . 1 1 . 1 . . . . . . . . . 1 . . . . . Hunter 24 | . . . . . . . 2 2 . . 4 1 1 . . 3 . . . . . . . . . 2 2 4 . . 3 Programmer 33 | . . . . . . . . 3 . 2 . . 2 2 . 6 . . . . . . . 1 . 4 1 4 . . 8 Heavy 3 | . . . . . . . 1 . . . . . 1 . . . . . . . . . . . . . . . . . 1 Behemoth 3 | . . . . . . . . . . . . . . . . . . . . . . . . 2 . 1 . . . . . Striker 2 | . . . . . . . . . . . . . . . . . . . . . . . . . . . . 2 . . . Alpha 7 1 | . . . . . . . . . . . . . . . . . . . . . . . . . . . . 1 . . . Protovariant L 1 | . . . . . . . . . . . . . . . . . . . . . . . . . . . . 1 . . . Wasp 1 | . . . . . . . . . . . . . . . . 1 . . . . . . . . . . . . . . . Thug 1 | . . . . . . . . . . . . . . . . . . . . . . . . 1 . . . . . . . Martyr 2 | . . . . . . . . . . . . . . . 1 . . . . . . 1 . . . . . . . . . Best Kill Streak 20 | 1 4 3 5 2 . . 16 9 4 5 3 1 12 5 . 5 4 . . . 3 . 2 3 . 6 7 17 4 2 20 Combat Bots Only 14 | . 3 1 4 2 . . 12 9 3 5 3 1 4 2 . 4 4 . . . 2 . 2 3 . 6 5 7 . . 14 Max Kills in Single Turn 10 | 1 1 3 1 1 . . 3 2 2 2 1 1 9 1 1 1 1 . . . 1 1 1 1 . 2 1 10 1 1 4 Gunslinging 1 | . . . . . . . . 1 . . . . . . . . . . . . . . . . . . . 1 . . . Exploded 4 | . . . 1 . . . 2 2 . 1 . . . . . . . . . . . . . . . 2 . 3 . . 4 Melee 1 | . . . . . . . . . . . 1 . . 1 . . . . . . . . . . . . . 1 . . . Uniques/NPCs Destroyed . | . . . . . . . . . . . . . . . . . . . . . . . . . . . . . . . . Combat | -11 -10 -10 -9 -9 -9 -8 -8 -8 -8 -7 -7 -7 -6 -5 -5 -5 -5 -5 -5 -4 -4 -4 -4 -4 -4 -4 -3 -3 -2 -2 -1 -------- Run | Yrd Mat Min Mat Min Exi Min Mat Gar Mat Fac Gar Fac Fac Fac Was Fac Upp Upp Zhi Pro Fac Was Fac Gar Fac Gar Res Tes Res Qua Acc Hostile Shots Fired 2784 | . 83 20 51 3 . . 161 172 26 56 178 18 300 139 . 179 47 . . . 37 . 4 54 . 267 104 272 111 47 455 Missed 904 | . 16 4 13 1 . . 54 44 6 19 56 4 107 53 . 43 8 . . . 13 . 2 25 . 103 42 103 50 28 110 Hits 1880 | . 67 16 38 2 . . 107 128 20 37 122 14 193 86 . 136 39 . . . 24 . 2 29 . 164 62 169 61 19 345 Melee 77 | . . . 4 . . . . 4 . 3 . . 1 . . 16 . . . . 3 . . 8 . . 1 37 . . . Projectile 1803 | . 67 16 34 2 . . 107 124 20 34 122 14 192 86 . 120 39 . . . 21 . 2 21 . 164 61 132 61 19 345 AOE 1 | . . . . . . . . . . . . . . . . . . . . . . . . . . . . . . . 1 Critical Strikes 108 | . 3 . 1 . . . 6 7 . 2 6 . 9 4 . 9 . . . . 1 . . 6 . 12 3 15 1 1 22 Actively Blocked 36 | . . . . . . . . . . . 4 . 9 . . . . . . . . . . 5 . 8 1 9 . . . Part Disruptions 8 | . . . . . . . . . . 2 . . . 1 . 1 . . . . . . . . . . . 2 . . 2 Damage Taken 38122 | . 833 184 561 45 . . 2001 1961 306 550 1479 226 3408 1488 . 2963 652 . . . 571 . 43 643 . 3356 1371 5005 1569 433 8474 Core 4285 | . 185 25 131 . . . 227 195 49 12 84 23 520 412 . 126 72 . . . 179 . 25 30 . 342 85 674 437 . 452 Absorbed by Shields 1118 | . . . . . . . . . . 120 54 . . 165 . 252 49 . . . . . 5 11 . 28 . 72 . . 362 Reduced by Siege Mode 721 | . . . . . . . . . . . . . . . . 228 51 . . . . . . . . . . . . . 442 Redirected to Shielding 66 | . . . . . . . . . . . . . . . . . . . . . 37 . . . . . . . 29 . . Regen/Repaired (Parts) 1640 | . . . . . . . . . . . . . . . 441 740 . . . . . 52 . 74 . . . . . 22 311 Core Remaining (%) 52 | 100 . 16 . . . 67 . . 14 . . 83 38 . . . . . . 39 . . . . . 49 . 41 . 69 63 Volleys Fired 1151 | 26 69 12 42 6 3 . 109 91 28 19 50 20 88 52 . 103 13 23 5 20 15 8 5 37 . 100 30 63 3 7 104 Largest 4 | 2 2 2 2 2 2 . 3 3 3 3 3 1 1 1 . 2 3 3 1 2 2 2 2 2 . 3 4 4 1 1 4 Hottest 383 | 40 136 136 136 136 136 . 183 183 132 132 160 50 65 44 . 112 90 90 30 60 180 60 60 180 . 360 240 383 54 54 356 Shots Fired 2276 | 52 138 25 78 12 6 . 300 133 85 48 164 20 88 52 2 186 39 67 5 39 30 16 10 73 . 188 53 165 3 7 192 Gun 860 | 52 106 . . . . . 271 17 . . 145 . . . 1 . . . . . . . . . . 112 9 147 . . . Cannon 1339 | . 32 25 73 12 6 . 28 113 85 44 15 19 80 49 1 186 39 67 5 39 30 16 10 73 . 54 36 12 3 7 180 Launcher 30 | . . . 5 . . . 1 3 . 4 . . . . . . . . . . . . . . . 5 . . . . 12 Special 47 | . . . . . . . . . . . 4 1 8 3 . . . . . . . . . . . 17 8 6 . . . Kinetic 1078 | 52 75 . . . . . 220 113 85 44 117 19 75 49 1 116 . . . . . . . . . 51 14 . 3 7 37 Thermal 1104 | . 63 25 73 12 6 . 79 17 . . 43 . 5 . 1 70 39 67 5 39 30 16 10 73 . 103 31 154 . . 143 Explosive 29 | . . . 5 . . . 1 3 . 4 . . . . . . . . . . . . . . . 5 . . . . 11 Electromagnetic 18 | . . . . . . . . . . . . . . . . . . . . . . . . . . 12 . 5 . . 1 Robot Hit Streak 29 | 7 11 5 9 7 3 . 13 29 6 3 22 15 10 7 3 14 11 4 9 . 11 6 4 8 . 8 6 13 . . 6 Robot Miss Streak 16 | 4 3 3 3 1 2 . 7 15 16 8 14 1 2 2 1 4 3 . . . 2 2 4 4 . 4 3 3 . . 7 Penetration Max 1 | . . . . . . . 1 . . . . . 1 . . . . . . . . . . . . 1 . . . . . Secondary Targets 19 | . 2 . . . . . 6 2 . . . . . . . . . . . . . . . . . 2 . 7 . . . Max Gunslinging Chain 1 | . 1 . . . . . 1 1 . . . . . . . . . . . . . . . . . 1 . 1 . . . Autonomous 105 | . . . . . . . 5 . . . 100 . . . . . . . . . . . . . . . . . . . . Shots Hit Robots 1502 | 32 98 12 43 8 3 . 177 116 63 40 144 19 67 52 4 118 22 1 5 . 20 12 6 39 3 118 32 124 20 4 100 Core Hits 767 | 11 35 6 21 2 2 . 94 76 52 48 72 2 30 15 4 44 11 1 3 . 8 3 4 17 . 58 16 46 8 1 77 Critical Kills 7 | 1 . . 2 1 . . 3 . . . . . . . . . . . . . . . . . . . . . . . . Critical Parts Destroyed 5 | . 1 . . . . . 1 . . . 2 . . . . . . . . . 1 . . . . . . . . . . Critical Strikes 66 | 1 3 . 2 1 . . 8 7 . . 3 3 15 2 1 6 . . . . 1 . . . 1 2 2 8 . . . Burn 14 | . 2 . . . . . 4 1 . . . . . . . . . . . . . . . . . 1 . 6 . . . Meltdown 3 | . . . 2 1 . . . . . . . . . . . . . . . . . . . . . . . . . . . Destroy 8 | 1 1 . . . . . 4 . . . 2 . . . . . . . . . . . . . . . . . . . . Blast 33 | . . . . . . . . 6 . . . 3 14 2 . 6 . . . . . . . . . . 2 . . . . Smash 1 | . . . . . . . . . . . . . . . . . . . . . 1 . . . . . . . . . . Sever 6 | . . . . . . . . . . . 1 . 1 . . . . . . . . . . . 1 1 . 2 . . . Impale 1 | . . . . . . . . . . . . . . . 1 . . . . . . . . . . . . . . . . Melee Attacks 474 | . 3 . 8 . . . 8 53 2 9 50 2 20 34 3 13 . . . 25 33 1 4 29 9 45 7 44 43 20 9 Impact 71 | . 3 . 8 . . . 8 . . . . . . . . 8 . . . 25 19 . . . . . . . . . . Slashing 382 | . . . . . . . . 53 2 9 50 2 20 34 . . . . . . 14 1 4 29 9 45 7 44 30 20 9 Piercing 21 | . . . . . . . . . . . . . . . 3 5 . . . . . . . . . . . . 13 . . Sneak Attacks 57 | . 1 . . . . . . . 1 . . 1 3 12 2 2 . . . . 7 1 . . 1 . . 9 12 3 2 Combat Hostiles . | . . . . . . . . . . . . . . . . . . . . . . . . . . . . . . . . Follow-up Attacks . | . . . . . . . . . . . . . . . . . . . . . . . . . . . . . . . . Damage Inflicted 61023 | 265 1253 313 1314 173 71 . 3908 4169 1031 1053 3632 895 4589 2155 287 4845 622 27 151 . 1201 401 220 1791 232 6535 1307 7371 2085 677 8450 Guns 13543 | 265 778 . . . . . 3380 316 . . 3252 . . . 13 . . . . . . . . . . 1531 119 3889 . . . Cannons 27037 | . 409 224 957 173 71 . 328 3153 954 804 193 717 3095 1132 . 4551 622 27 151 . 293 297 164 1791 . 1191 1144 180 . . 4416 Explosions 9579 | . . 89 357 . . . 200 238 . 249 . 93 1112 . . . . . . . . . . . . 2023 . 1612 . . 3606 Melee 10820 | . 66 . . . . . . 462 77 . 187 85 382 1023 274 251 . . . . 908 104 56 . 232 1790 44 1690 2085 677 427 Ramming 44 | . . . . . . . . . . . . . . . . 43 . . . . . . . . . . . . . . 1 Kinetic 21043 | 265 529 . . . . . 2780 3153 954 804 2618 717 3095 1132 . 3052 . . . . . . . . . 757 296 . . . 891 Thermal 20460 | . 658 313 957 173 71 . 928 316 . . 827 93 1112 . 13 1499 622 27 151 . 293 297 164 1791 . 1670 967 3993 . . 3525 Explosive 6673 | . . . 357 . . . 200 238 . 249 . . . . . . . . . . . . . . . 2023 . . . . 3606 Electromagnetic 1983 | . . . . . . . . . . . . . . . . . . . . . . . . . . 295 . 1688 . . . Impact 861 | . 66 . . . . . . . . . . . . . . 251 . . . . 544 . . . . . . . . . . Slashing 9303 | . . . . . . . . 462 77 . 187 85 382 1023 . . . . . . 364 104 56 . 232 1790 44 1690 1703 677 427 Piercing 656 | . . . . . . . . . . . . . . . 274 . . . . . . . . . . . . . 382 . . Highest Corruption 18 | . 1 1 . . . . . 1 5 4 4 4 12 7 7 18 18 18 18 18 1 1 1 2 4 11 8 17 . . 15 Average Corruption 7 | . 1 1 . . . . . 1 3 2 4 4 5 4 7 13 18 18 18 18 1 1 1 1 2 8 7 10 . . 9 Corruption Purged . | . . . . . . . . . . . . . . . . . . . . . . . . . . . . . . . . Corruption Blocked 2 | . . . . . . . . . . . . . . . . . . . . . . . . . . . . . 1 1 . Effects 559 | . 5 1 . . . . . 4 19 12 43 7 30 15 22 90 39 45 12 16 5 1 1 9 4 65 22 54 . . 38 Message Errors 136 | . 1 . . . . . . . 5 5 8 4 5 5 9 20 14 14 4 4 . . . 3 1 13 3 9 . . 9 Matter Fused 124 | . . . . . . . . 3 5 2 10 1 8 6 2 21 9 11 2 2 2 . . 2 . 15 4 14 . . 5 Heat Flow Errors 63 | . 2 . . . . . . . 1 . 10 1 3 1 1 14 3 3 1 3 . . 1 . . 7 3 4 . . 5 Energy Discharges 68 | . . . . . . . . . 4 . 7 1 5 1 4 9 5 5 2 4 2 . . . . 6 2 8 . . 3 Parts Rejected 8 | . . . . . . . . . . . . . . . . 1 1 . . . . . . . . 1 2 2 . . 1 Parts Fused 6 | . . . . . . . . . . . . . . . . 2 . . . . . . . 1 . . 2 . . . 1 Data Loss (minor) 62 | . 2 . . . . . . . . 4 4 . 5 2 3 9 2 5 2 1 . . . 1 2 9 3 4 . . 4 Data Loss (major) 29 | . . . . . . . . . 2 1 1 . 3 . 1 3 2 1 . 1 1 1 . 1 1 4 1 3 . . 2 Misfires 18 | . . 1 . . . . . . 1 . 1 . . . 2 6 2 2 . . . . . . . 1 . 2 . . . Alerts 11 | . . . . . . . . . 1 . 2 . . . . 2 . . 1 . . . . . . 3 . 2 . . . Misdirections 6 | . . . . . . . . . . . . . 1 . . . . . . . . . . . . 1 . 2 . . 2 Weapon Failures 28 | . . . . . . . . 1 . . . . . . . 3 1 4 . 1 . . . 1 . 5 2 4 . . 6 Overload Shots 122 | . . . . . . . . . . . . . . . . . . . . . 2 . . 38 . . . 82 . . . Effects 5 | . . . . . . . . . . . . . . . . . . . . . . . . 3 . . . 2 . . . Energy Bleed 2 | . . . . . . . . . . . . . . . . . . . . . . . . 1 . . . 1 . . . Heat Surge 3 | . . . . . . . . . . . . . . . . . . . . . . . . 2 . . . 1 . . . Overflow Damage 4233 | . 57 1 5 16 . . . 170 47 . 5 73 648 302 . 353 2 . 34 . 376 . . 25 51 221 128 457 638 411 213 Projectiles 1231 | . 11 1 5 16 . . . 154 . . . 56 225 110 . 238 2 . 34 . . . . 25 . 84 128 . . . 142 Explosions 561 | . . . . . . . . 7 . . . 17 262 . . . . . . . . . . . . 39 . 184 . . 52 Melee 2441 | . 46 . . . . . . 9 47 . 5 . 161 192 . 115 . . . . 376 . . . 51 98 . 273 638 411 19 Knockbacks 142 | . 1 . . . . . . 26 27 27 6 3 20 8 . 11 . . . . 2 . . . . . 2 . . . 9 Impact 4 | . 1 . . . . . . . . . . . . . . 1 . . . . 2 . . . . . . . . . . Kinetic 130 | . . . . . . . . 24 25 27 6 3 17 8 . 10 . . . . . . . . . . 2 . . . 8 Secondary 8 | . . . . . . . . 2 2 . . . 3 . . . . . . . . . . . . . . . . . 1 Self-Inflicted Damage 791 | . . . . . . . . 39 . 24 . . 62 . . . . . . . . . . . . . . 396 . . 270 Shots 15 | . . . . . . . . 1 . 1 . . 1 . . . . . . . . . . . . . . 4 . . 8 Rammed 5 | . . . . . . . . . . . . . . 1 . 3 . . . . . . . . . . . . . . 1 Targets Rammed 5 | . . . . . . . . . . . . . . 1 . 3 . . . . . . . . . . . . . . 1 Kicked . | . . . . . . . . . . . . . . . . . . . . . . . . . . . . . . . . Crushed . | . . . . . . . . . . . . . . . . . . . . . . . . . . . . . . . . Highest Temperature 387 | . 387 252 300 144 144 . 218 381 296 317 258 153 240 217 70 343 245 245 110 232 52 . 198 159 . 244 118 364 7 . 248 Average Temperature 82 | . 83 76 73 60 64 . 61 71 109 104 72 59 32 93 44 126 94 127 54 99 26 . 96 87 . 60 35 114 4 . 52 Received Heat Transfer 6153 | . 519 63 231 18 . . 711 666 135 102 531 18 480 204 . 613 159 . . . 159 . 9 39 . 556 75 156 189 27 493 Effects 21 | . 4 . . . . . . 4 3 1 . . . 3 . 6 . . . . . . . . . . . . . . . Shutdowns 1 | . 1 . . . . . . . . . . . . . . . . . . . . . . . . . . . . . . Energy Bleed 7 | . 3 . . . . . . . 1 1 . . . . . 2 . . . . . . . . . . . . . . . Interference 11 | . . . . . . . . 3 2 . . . . 3 . 3 . . . . . . . . . . . . . . . Matter Decay 1 | . . . . . . . . 1 . . . . . . . . . . . . . . . . . . . . . . . Short Circuit 1 | . . . . . . . . . . . . . . . . 1 . . . . . . . . . . . . . . . Siege Activations 12 | . . . . . . . . . . . . . . . . 5 2 . . . . . . . . . . . . . 5 Total Turns 257 | . . . . . . . . . . . . . . . . 122 33 . . . . . . . . . . . . . 102 Longest Duration 44 | . . . . . . . . . . . . . . . . 35 20 . . . . . . . . . . . . . 44 Martial Activations . | . . . . . . . . . . . . . . . . . . . . . . . . . . . . . . . . Shielding Activations . | . . . . . . . . . . . . . . . . . . . . . . . . . . . . . . . . Robots Disrupted . | . . . . . . . . . . . . . . . . . . . . . . . . . . . . . . . . Combat Hostiles . | . . . . . . . . . . . . . . . . . . . . . . . . . . . . . . . . Robots Corrupted 8 | . 1 . . . . . . . . . . . . . . 1 . . . . 2 . . . . . . 4 . . . Combat Hostiles 4 | . . . . . . . . . . . . . . . . . . . . . . . . . . . . 4 . . . Parts Fried 28 | . 3 . . . . . . . . . . . . . . 5 . . . . 6 . . . . 2 . 12 . . . Impact Corruptions 10 | . 2 . . . . . . . . . . . . . . 2 . . . . 6 . . . . . . . . . . Robots Melted 9 | . . . 3 1 . . . . . . . . . . . . . . . . . . . 2 . . . 3 . . . Combat Hostiles 9 | . . . 3 1 . . . . . . . . . . . . . . . . . . . 2 . . . 3 . . . Parts Melted 74 | . 2 4 6 1 . . 5 2 . . . . 1 . . 11 3 . . . 2 . . 5 . 1 . 30 . . 1 Heat Transferred 28084 | . 1557 557 1702 296 111 . 1998 629 . . 1471 50 750 . 37 1924 851 37 185 . 383 407 222 1866 . 1963 790 7375 . . 2923 Parts Sabotaged . | . . . . . . . . . . . . . . . . . . . . . . . . . . . . . . . . Parts Stolen . | . . . . . . . . . . . . . . . . . . . . . . . . . . . . . . . . Parts Stripped . | . . . . . . . . . . . . . . . . . . . . . . . . . . . . . . . . Power Chain Reactions 3 | . . . . . . . . . . . . . . . . . . . . . . . . . . . . 2 . . 1 Alert | -11 -10 -10 -9 -9 -9 -8 -8 -8 -8 -7 -7 -7 -6 -5 -5 -5 -5 -5 -5 -4 -4 -4 -4 -4 -4 -4 -3 -3 -2 -2 -1 ------- Run | Yrd Mat Min Mat Min Exi Min Mat Gar Mat Fac Gar Fac Fac Fac Was Fac Upp Upp Zhi Pro Fac Was Fac Gar Fac Gar Res Tes Res Qua Acc Maximum Alert Level 5 | . . . 1 . . . 2 5 3 1 4 3 2 . . 3 . . . . . . 2 5 3 5 3 3 3 1 4 Low Security (%) 34 | 100 100 100 99 100 . 100 42 1 . 67 8 . 3 100 100 18 . . . . 100 100 30 . . . . . . 91 27 Level 1 14 | . . . . . . . 46 14 . 32 23 . 72 . . 12 . . . . . . 20 7 . . . 1 30 8 5 Level 2 12 | . . . . . . . 10 24 9 . 19 . 24 . . 17 . . . . . . 49 4 . 19 . 25 61 . 2 Level 3 25 | . . . . . . . . 16 90 . 23 100 . . . 52 . . . . . . . 34 100 18 100 72 8 . 44 Level 4 9 | . . . . . . . . 28 . . 25 . . . . . . . . . . . . 22 . 50 . . . . 19 Level 5 2 | . . . . . . . . 15 . . . . . . . . . . . . . . . 31 . 11 . . . . . High Security . | . . . . . . . . . . . . . . . . . . . . . . . . . . . . . . . . Max Security . | . . . . . . . . . . . . . . . . . . . . . . . . . . . . . . . . Peak Influence 1796 | 5 127 149 201 120 . . 489 1796 940 318 1480 817 467 199 67 992 . . . . 132 56 513 1792 940 1750 991 928 771 267 1183 Initial 984 | . 3 33 54 70 . . . 141 875 318 114 777 359 199 67 . . . . . . 32 . 359 940 495 984 421 510 210 148 Average 527 | 1 47 28 84 28 . . 237 965 757 179 737 762 331 77 7 584 . . . . 73 34 304 1243 769 1138 896 684 476 113 676 Influence Increases 19205 | 30 399 263 554 55 5 . 1183 1875 481 307 1476 146 1059 456 22 1780 160 . 10 . 441 66 687 1583 38 1695 318 1329 731 357 1699 Destroy 0b10 Robot/C 8120 | . 240 100 340 40 . . 760 940 300 180 620 40 420 140 . 760 140 . . . 60 . 200 640 . 720 160 500 . . 820 Destroy 0b10 Robot/NC 875 | 30 35 20 25 5 5 . 105 5 30 5 5 10 100 45 . 65 . . 10 . 30 . 30 5 . 10 30 85 65 20 100 Destroy Leader 1340 | . 48 20 98 10 . . 210 40 94 50 30 12 94 32 . 150 20 . . . 6 . 32 50 . 70 40 74 4 . 156 Allied During Kill 1551 | . . 6 2 . . . 6 39 15 . 16 . 12 . . 505 . . . . . . 262 447 . 113 14 4 . . 110 Successful Hack 322 | . 13 . 8 . . . 13 14 11 . 14 . 37 . . 23 . . . . 21 . 42 . . . 7 44 26 49 . Disable Machine 990 | . 15 105 45 . . . 15 45 15 . . 45 120 . . 90 . . . . 30 . 45 75 . 60 . 105 15 60 105 Anti-Garrison Action 1800 | . . . . . . . . 550 . . 650 . . . . . . . . . . . . 200 . 400 . . . . . Destroy Structure 1867 | . 3 12 21 . . . 29 167 1 27 96 39 51 44 22 112 . . . . 54 66 76 136 8 172 52 202 66 33 378 Partial Spotted 285 | . . . . . . . 30 15 . . 15 . 15 . . . . . . . 60 . . . 15 60 . 30 . 45 . Lose Combat Pursuer 2055 | . 45 . 15 . . . 15 60 15 45 30 . 210 195 . 75 . . . . 180 . . 30 15 90 15 285 555 150 30 Influence Decreases 18139 | 25 319 207 515 235 5 . 966 296 1577 844 159 893 1384 671 215 798 716 426 10 . 348 159 174 304 1122 653 1318 1171 1264 485 880 Entered New Map 6574 | . 2 52 87 110 . . . 76 921 382 49 703 374 209 126 . 364 82 . . . 61 . 154 852 213 766 329 398 165 99 Time Decay 7551 | 25 317 155 368 125 5 . 534 . 486 452 . 190 580 392 89 508 342 344 10 . 318 98 132 . 100 . 362 542 356 150 571 Search Patrol Dispatched 100 | . . . . . . . . . . . . . . . . . . . . . . . . . . . . . 100 . . Lost Part 1420 | . . . 40 . . . 90 60 . 10 70 . 180 70 . 30 10 . . . 10 . . . . 200 70 240 110 20 210 Lost Ally 1294 | . . . 20 . . . 42 160 20 . 40 . 100 . . 260 . . . . 20 . 42 150 20 240 120 60 . . . Purge Threat 1200 | . . . . . . . 300 . 150 . . . 150 . . . . . . . . . . . 150 . . . 300 150 . Squads Dispatched 108 | . 1 . 1 . . . 8 . 1 5 . 2 16 9 . 10 . . . . 7 . 3 . 1 . 9 13 7 3 12 Investigation 9 | . 1 . 1 . . . . . . . . . 3 . . 2 . . . . . . . . . . . . 1 . 1 Extermination 31 | . . . . . . . . . . 2 . 1 5 2 . 4 . . . . 2 . 2 . . . 1 3 3 1 5 Reinforcement 41 | . . . . . . . 6 . 1 . . 1 7 4 . 2 . . . . 3 . 1 . . . 3 4 3 2 4 Assault 10 | . . . . . . . . . . . . . 1 . . . . . . . 2 . . . . . 2 4 . . 1 Garrison 17 | . . . . . . . 2 . . 3 . . . 3 . 2 . . . . . . . . 1 . 3 2 . . 1 Intercept . | . . . . . . . . . . . . . . . . . . . . . . . . . . . . . . . . Searches Triggered 1 | . . . . . . . . . . . . . . . . . . . . . . . . . . . . . 1 . . Construction Impeded 9 | . . . . . . . 2 . . . . . . . . 1 . . . . . . . . . . 1 2 . . 3 Haulers Reinforced 7 | . . . . . . . . . . . . 1 . 1 . 1 . . . . 1 . 1 . . . 1 1 . . . Active Scanning Responses . | . . . . . . . . . . . . . . . . . . . . . . . . . . . . . . . . Cargo Convoy Interrupts . | . . . . . . . . . . . . . . . . . . . . . . . . . . . . . . . . Stealth | -11 -10 -10 -9 -9 -9 -8 -8 -8 -8 -7 -7 -7 -6 -5 -5 -5 -5 -5 -5 -4 -4 -4 -4 -4 -4 -4 -3 -3 -2 -2 -1 --------- Run | Yrd Mat Min Mat Min Exi Min Mat Gar Mat Fac Gar Fac Fac Fac Was Fac Upp Upp Zhi Pro Fac Was Fac Gar Fac Gar Res Tes Res Qua Acc Distress Signals 26 | . 1 . 1 . . . 5 1 1 . 1 . 1 . . . . . . . 2 . . 1 . . 1 5 3 1 2 Communications Jammed 5 | . . . . . . . 5 . . . . . . . . . . . . . . . . . . . . . . . . Distress Signals 5 | . . . . . . . 5 . . . . . . . . . . . . . . . . . . . . . . . . Times Spotted 725 | . 20 7 23 1 . . 59 52 24 13 36 3 51 31 1 40 7 . . . 26 6 11 41 1 49 17 66 51 22 67 Peak Tracking Total 21 | . 3 3 4 1 . . 10 7 4 5 4 1 7 8 1 8 4 . . . 7 4 3 8 1 10 6 15 21 11 9 Tactical Retreats 59 | . 1 . 1 . . . 1 2 1 1 1 . 8 6 . 3 . . . . 7 . . 2 1 4 1 6 9 2 2 Traps | -11 -10 -10 -9 -9 -9 -8 -8 -8 -8 -7 -7 -7 -6 -5 -5 -5 -5 -5 -5 -4 -4 -4 -4 -4 -4 -4 -3 -3 -2 -2 -1 ------- Run | Yrd Mat Min Mat Min Exi Min Mat Gar Mat Fac Gar Fac Fac Fac Was Fac Upp Upp Zhi Pro Fac Was Fac Gar Fac Gar Res Tes Res Qua Acc Traps Triggered 51 | . 2 . . . . . . 8 2 1 8 . 5 2 . 3 . . . . 4 . . 3 1 7 2 . 2 1 . Indirectly . | . . . . . . . . . . . . . . . . . . . . . . . . . . . . . . . . Trap Hack Attempts . | . . . . . . . . . . . . . . . . . . . . . . . . . . . . . . . . Triggered . | . . . . . . . . . . . . . . . . . . . . . . . . . . . . . . . . Disarmed . | . . . . . . . . . . . . . . . . . . . . . . . . . . . . . . . . Reprogrammed . | . . . . . . . . . . . . . . . . . . . . . . . . . . . . . . . . Reused . | . . . . . . . . . . . . . . . . . . . . . . . . . . . . . . . . Traps Extracted . | . . . . . . . . . . . . . . . . . . . . . . . . . . . . . . . . Installed . | . . . . . . . . . . . . . . . . . . . . . . . . . . . . . . . . Triggered . | . . . . . . . . . . . . . . . . . . . . . . . . . . . . . . . . Machines | -11 -10 -10 -9 -9 -9 -8 -8 -8 -8 -7 -7 -7 -6 -5 -5 -5 -5 -5 -5 -4 -4 -4 -4 -4 -4 -4 -3 -3 -2 -2 -1 ---------- Run | Yrd Mat Min Mat Min Exi Min Mat Gar Mat Fac Gar Fac Fac Fac Was Fac Upp Upp Zhi Pro Fac Was Fac Gar Fac Gar Res Tes Res Qua Acc Machines Disabled 91 | . 1 7 3 . . . 1 8 1 . 7 3 8 . . 6 . . . . 2 . 3 10 . 10 . 8 1 5 7 Max in Single Turn 7 | . 1 7 2 . . . 1 1 . . 1 3 4 . . 1 . . . . 1 . . 2 . 2 . 3 1 1 1 Garrison Access 3 | . . . . . . . . . . . . . . . . . . . . . 1 . . . . . 1 1 . . . Garrison Relay 19 | . . . . . . . . 5 . . 6 . . . . . . . . . . . . 4 . 4 . . . . . Machines Repaired . | . . . . . . . . . . . . . . . . . . . . . . . . . . . . . . . . Machines Dismantled . | . . . . . . . . . . . . . . . . . . . . . . . . . . . . . . . . Machines Sabotaged . | . . . . . . . . . . . . . . . . . . . . . . . . . . . . . . . . Overloaded Fab Kills . | . . . . . . . . . . . . . . . . . . . . . . . . . . . . . . . . Hacking | -11 -10 -10 -9 -9 -9 -8 -8 -8 -8 -7 -7 -7 -6 -5 -5 -5 -5 -5 -5 -4 -4 -4 -4 -4 -4 -4 -3 -3 -2 -2 -1 --------- Run | Yrd Mat Min Mat Min Exi Min Mat Gar Mat Fac Gar Fac Fac Fac Was Fac Upp Upp Zhi Pro Fac Was Fac Gar Fac Gar Res Tes Res Qua Acc Machines Accessed 107 | . 6 . 6 1 2 . 6 4 7 2 3 . 9 4 . 9 . . 7 . 8 . 4 2 6 1 3 5 8 3 1 Terminals 74 | . 6 . 5 . . . 3 4 5 1 3 . 8 3 . 5 . . . . 6 . 2 2 4 1 2 4 6 3 1 Fabricators 2 | . . . . . . . . . . . . . . . . . . . . . 1 . 1 . . . . . . . . Repair Stations 3 | . . . . . . . 1 . . . . . . . . 1 . . . . . . . . . . . . 1 . . Recycling Units 4 | . . . . . . . . . 1 . . . . . . 1 . . . . 1 . . . . . . . 1 . . Scanalyzers 9 | . . . 1 . . . 1 . 1 . . . 1 1 . 2 . . . . . . . . 1 . . 1 . . . Garrison Access 5 | . . . . . . . 1 . . 1 . . . . . . . . . . . . 1 . 1 . 1 . . . . Total Hacks 249 | . 12 . 13 1 2 . 11 6 10 3 4 . 17 11 . 17 . . 46 . 13 . 8 3 14 2 10 10 25 8 3 Successful 137 | . 8 . 6 1 2 . 8 2 5 1 1 . 5 3 . 5 . . 46 . 8 . 4 1 5 . 3 3 14 6 . Failed 111 | . 4 . 7 . . . 3 4 5 2 3 . 12 8 . 11 . . . . 5 . 4 2 9 2 7 7 11 2 3 Catastrophic 24 | . . . 2 . . . 2 1 2 . 1 . 3 1 . 4 . . . . . . . 1 2 . 1 2 . 1 1 Database Lockouts 1 | . . . . . . . . . . . . . . . . 1 . . . . . . . . . . . . . . . Manual 60 | . 4 . 1 . 1 . 2 . 2 . . . 7 2 . 4 . . . . 8 . 4 . 4 . 4 1 14 2 . Terminals 164 | . 12 . 11 . . . 6 6 8 2 4 . 15 7 . 11 . . . . 11 . 5 3 11 2 9 8 22 8 3 Fabricators 3 | . . . . . . . . . . . . . . . . . . . . . 1 . 2 . . . . . . . . Repair Stations 5 | . . . . . . . 1 . . . . . . . . 2 . . . . . . . . . . . . 2 . . Recycling Units 4 | . . . . . . . . . 1 . . . . . . 1 . . . . 1 . . . . . . . 1 . . Scanalyzers 19 | . . . 2 . . . 3 . 1 . . . 2 4 . 3 . . . . . . . . 2 . . 2 . . . Garrison Access 5 | . . . . . . . 1 . . 1 . . . . . . . . . . . . 1 . 1 . 1 . . . . Terminal Hacks 97 | . 7 . 4 1 2 . 4 2 3 . 1 . 1 . . 2 . . 46 . 3 . 1 1 2 . 1 2 9 5 . Record 36 | . . . . . 1 . . . . . . . . . . . . . 34 . . . . . . . . . 1 . . Part Schematic 4 | . . . . . . . . . . . . . . . . . . . 4 . . . . . . . . . . . . Robot Analysis 7 | . 1 . 1 . . . . . . . . . . . . . . . 4 . . . . . . . . . . 1 . Prototype ID Bank 5 | . 1 . . . . . . . . . . . . . . . . . 4 . . . . . . . . . . . . Open Door 2 | . . . . 1 . . . 1 . . . . . . . . . . . . . . . . . . . . . . . Branch Access Points 4 | . . . 1 . . . 1 . . . . . . . . . . . . . . . . . . . . 1 1 . . Emergency Access Points 4 | . . . . . . . . 1 . . 1 . . . . . . . . . . . . 1 . . . . . 1 . Terminal Index 2 | . . . . . . . . . . . . . . . . 1 . . . . . . . . . . . . 1 . . Unreport Threat 7 | . . . . . . . 2 . 1 . . . . . . . . . . . . . . . 1 . . . 2 1 . Locate Traps 6 | . 2 . . . . . . . 1 . . . . . . . . . . . 1 . . . . . . 1 . 1 . Hauler Manifests 4 | . 1 . . . . . . . . . . . 1 . . . . . . . 1 . . . . . . . 1 . . Registered Components 7 | . 1 . . . . . . . . . . . . . . 1 . . . . . . 1 . 1 . 1 . 1 1 . Zone Layout 8 | . 1 . 2 . . . 1 . 1 . . . . . . . . . . . 1 . . . . . . . 2 . . Proto ID Catalog 1 | . . . . . 1 . . . . . . . . . . . . . . . . . . . . . . . . . . Fabricator Hacks 1 | . . . . . . . . . . . . . . . . . . . . . . . 1 . . . . . . . . Build 1 | . . . . . . . . . . . . . . . . . . . . . . . 1 . . . . . . . . Repair Station Hacks . | . . . . . . . . . . . . . . . . . . . . . . . . . . . . . . . . Recycling Unit Hacks 4 | . . . . . . . . . 1 . . . . . . 1 . . . . 1 . . . . . . . 1 . . Report Inventory 3 | . . . . . . . . . 1 . . . . . . 1 . . . . 1 . . . . . . . . . . Retrieve Components 1 | . . . . . . . . . . . . . . . . . . . . . . . . . . . . . 1 . . Scanalyzer 13 | . . . 2 . . . 3 . 1 . . . 1 3 . 1 . . . . . . . . 1 . . 1 . . . Insert Component 1 | . . . . . . . . . . . . . . 1 . . . . . . . . . . . . . . . . . Analyze 1 | . . . . . . . . . . . . . . 1 . . . . . . . . . . . . . . . . . Retrieve Study 11 | . . . 2 . . . 3 . 1 . . . 1 1 . 1 . . . . . . . . 1 . . 1 . . . Garrison Access Hacks 5 | . . . . . . . 1 . . 1 . . . . . . . . . . . . 1 . 1 . 1 . . . . Unlock Access 4 | . . . . . . . 1 . . 1 . . . . . . . . . . . . 1 . 1 . . . . . . Seal Access 1 | . . . . . . . . . . . . . . . . . . . . . . . . . . . 1 . . . . Unauthorized Hacks 17 | . 1 . . . . . . . . . . . 3 . . 1 . . . . 4 . 1 . 1 . 1 . 4 1 . Terminals 14 | . 1 . . . . . . . . . . . 3 . . . . . . . 3 . . . 1 . 1 . 4 1 . Track 2 | . . . . . . . . . . . . . 1 . . . . . . . . . . . . . . . 1 . . Assimilate 3 | . . . . . . . . . . . . . 1 . . . . . . . 2 . . . . . . . . . . Botnet 8 | . 1 . . . . . . . . . . . 1 . . . . . . . 1 . . . 1 . 1 . 2 1 . Disrupt 1 | . . . . . . . . . . . . . . . . . . . . . . . . . . . . . 1 . . Fabricators 2 | . . . . . . . . . . . . . . . . . . . . . 1 . 1 . . . . . . . . Liberate 2 | . . . . . . . . . . . . . . . . . . . . . 1 . 1 . . . . . . . . Repair Stations 1 | . . . . . . . . . . . . . . . . 1 . . . . . . . . . . . . . . . Patch 1 | . . . . . . . . . . . . . . . . 1 . . . . . . . . . . . . . . . Recycling Units . | . . . . . . . . . . . . . . . . . . . . . . . . . . . . . . . . Scanalyzers . | . . . . . . . . . . . . . . . . . . . . . . . . . . . . . . . . Garrison Access . | . . . . . . . . . . . . . . . . . . . . . . . . . . . . . . . . Data Cores Recovered 3 | . . . . . . . 1 . . . . . 1 . . . . . . . . . 1 . . . . . . . . Used 1 | . . . . . . . . . . . . . . . . . . . . . . . 1 . . . . . . . . Hacking Detections 71 | . 2 . 3 . . . 3 3 5 2 3 . 9 3 . 9 . . . . 2 . 3 2 5 1 2 5 6 2 1 Full Trace Events 5 | . . . 1 . . . . . . . 1 . . . . 1 . . . . . . . . . . . . 1 . 1 Feedback Events . | . . . . . . . . . . . . . . . . . . . . . . . . . . . . . . . . Feedback Blocked . | . . . . . . . . . . . . . . . . . . . . . . . . . . . . . . . . Robot Schematics Acquired 1 | . . . . . . . . . . . . . . . . . . . . . . . . . . . . 1 . . . Robots Built 3 | . . . . . . . . . . . . . . . . . . . . . . . 3 . . . . . . . . Authchips . | . . . . . . . . . . . . . . . . . . . . . . . . . . . . . . . . Time 62 | . . . . . . . . . . . . . . . . . . . . . . . 62 . . . . . . . . Total Robot Build Rating 21 | . . . . . . . . . . . . . . . . . . . . . . . 21 . . . . . . . . Part Schematics Acquired 6 | . . . . . . . . . . . . . . 1 . . . . 4 . . . . . . . . 1 . . . Parts Built . | . . . . . . . . . . . . . . . . . . . . . . . . . . . . . . . . Authchips . | . . . . . . . . . . . . . . . . . . . . . . . . . . . . . . . . Time . | . . . . . . . . . . . . . . . . . . . . . . . . . . . . . . . . Total Part Build Rating . | . . . . . . . . . . . . . . . . . . . . . . . . . . . . . . . . Part Studies Acquired 11 | . . . 2 . . . 3 . 1 . . . 1 1 . 1 . . . . . . . . 1 . . 1 . . . Parts Repaired . | . . . . . . . . . . . . . . . . . . . . . . . . . . . . . . . . Time . | . . . . . . . . . . . . . . . . . . . . . . . . . . . . . . . . Parts Recycled . | . . . . . . . . . . . . . . . . . . . . . . . . . . . . . . . . Recycled Matter . | . . . . . . . . . . . . . . . . . . . . . . . . . . . . . . . . Retrieved Matter . | . . . . . . . . . . . . . . . . . . . . . . . . . . . . . . . . Retrieved Components 5 | . . . . . . . . . . . . . . . . . . . . . . . . . . . . . 5 . . Parts Scanalyzed 1 | . . . . . . . . . . . . . . 1 . . . . . . . . . . . . . . . . . Part Schematics Acquired 1 | . . . . . . . . . . . . . . 1 . . . . . . . . . . . . . . . . . Parts Damaged . | . . . . . . . . . . . . . . . . . . . . . . . . . . . . . . . . Bothacking | -11 -10 -10 -9 -9 -9 -8 -8 -8 -8 -7 -7 -7 -6 -5 -5 -5 -5 -5 -5 -4 -4 -4 -4 -4 -4 -4 -3 -3 -2 -2 -1 ------------ Run | Yrd Mat Min Mat Min Exi Min Mat Gar Mat Fac Gar Fac Fac Fac Was Fac Upp Upp Zhi Pro Fac Was Fac Gar Fac Gar Res Tes Res Qua Acc Used RIF Installer 5 | . . . . . . . . . . . 2 . . . . . . . . . . . . 2 . 1 . . . . . Coupler Efficiency 1 | . . . . . . . . . . . . . . . . . . . . . . . . 1 . . . . . . . Signal Jammer 1 | . . . . . . . . . . . . . . . . . . . . . . . . . . 1 . . . . . Zone Cloak 1 | . . . . . . . . . . . . . . . . . . . . . . . . 1 . . . . . . . Program Shield 1 | . . . . . . . . . . . 1 . . . . . . . . . . . . . . . . . . . . Robots Hacked 32 | . . . . . . . . . . . 2 1 5 2 . . . . . . . . . . . 11 7 4 . . . Non-combat 1 | . . . . . . . . . . . . . 1 . . . . . . . . . . . . . . . . . . Combat 31 | . . . . . . . . . . . 2 1 4 2 . . . . . . . . . . . 11 7 4 . . . Robot Hacks Applied 33 | . . . . . . . . . . . 2 1 5 3 . . . . . . . . . . . 11 7 4 . . . purge_threat 1 | . . . . . . . . . . . . . 1 . . . . . . . . . . . . . . . . . . overload_power 2 | . . . . . . . . . . . . . . 1 . . . . . . . . . . . . . 1 . . . overwrite_iff 13 | . . . . . . . . . . . . . 2 2 . . . . . . . . . . . 3 4 2 . . . formatsys_high 17 | . . . . . . . . . . . 2 1 2 . . . . . . . . . . . . 8 3 1 . . . Relay Couplers Released 83 | . . . . . . . . 18 . . 25 . . . . . . . . . 3 . . 18 . 17 . 2 . . . Machine Destruction 83 | . . . . . . . . 18 . . 25 . . . . . . . . . 3 . . 18 . 17 . 2 . . . Attached 16 | . . . . . . . . . . . 2 . 4 . . . . . . . . . . . . 6 3 1 . . . Fabnet Peak Effective % . | . . . . . . . . . . . . . . . . . . . . . . . . . . . . . . . . Robots Rewired 19 | . . . . . 5 . . 11 . . . . . . . . . . . . . . . . . 3 . . . . . Allies Hacked 4 | . . . . . . . . . . . . . . . . 4 . . . . . . . . . . . . . . . Hacks Repelled . | . . . . . . . . . . . . . . . . . . . . . . . . . . . . . . . . Allies | -11 -10 -10 -9 -9 -9 -8 -8 -8 -8 -7 -7 -7 -6 -5 -5 -5 -5 -5 -5 -4 -4 -4 -4 -4 -4 -4 -3 -3 -2 -2 -1 -------- Run | Yrd Mat Min Mat Min Exi Min Mat Gar Mat Fac Gar Fac Fac Fac Was Fac Upp Upp Zhi Pro Fac Was Fac Gar Fac Gar Res Tes Res Qua Acc Total Allies 99 | . . 1 . . 5 . . 11 . . 2 1 4 2 20 . . . . . 2 19 3 . . 16 7 3 . . 3 Largest Group 20 | . . 1 1 . 5 5 5 9 2 . 2 1 2 1 20 19 . . . . 2 19 15 12 1 5 2 2 . . 3 Highest-Rated Group 705 | . . 31 31 . 66 66 66 204 51 . 64 32 58 29 705 654 . . . . 55 684 534 482 47 232 163 94 . . 379 Highest-Rated Ally 135 | . . 31 31 . 21 21 21 40 31 . 32 32 32 29 50 46 . . . . 45 50 47 47 47 116 116 47 . . 135 Initial Warlord ECA Mod 9 | . . . . . . . . . 9 8 8 . . . . . . . . . . . . . . . . . . . . Total Orders 6 | . . . . . . . . . . . 2 . . . . . . . . . . . . . . 2 2 . . . . STAY 4 | . . . . . . . . . . . 1 . . . . . . . . . . . . . . 1 2 . . . . FOLLOW 2 | . . . . . . . . . . . 1 . . . . . . . . . . . . . . 1 . . . . . Ally Attacks 803 | . . 14 11 . . . 11 51 12 . 8 . 19 10 20 174 . . . . . 95 65 131 3 88 19 14 . . 58 Total Damage 20829 | . . 210 193 . . . 171 822 341 . 253 . 349 172 433 3415 . . . . . 2600 2020 3504 117 2821 1067 411 . . 1930 Kills 128 | . . 4 3 . . . 2 6 3 . 3 . 2 . 1 23 . . . . . 9 15 22 . 14 6 2 . . 13 Allies Corrupted 10 | . . . . . . . . . . . . . . . . 3 . . . . . . . 3 . 2 2 . . . . Allies Melted . | . . . . . . . . . . . . . . . . . . . . . . . . . . . . . . . . Intel | -11 -10 -10 -9 -9 -9 -8 -8 -8 -8 -7 -7 -7 -6 -5 -5 -5 -5 -5 -5 -4 -4 -4 -4 -4 -4 -4 -3 -3 -2 -2 -1 ------- Run | Yrd Mat Min Mat Min Exi Min Mat Gar Mat Fac Gar Fac Fac Fac Was Fac Upp Upp Zhi Pro Fac Was Fac Gar Fac Gar Res Tes Res Qua Acc Active Infowar (turns) 22813 | 144 750 . 426 522 844 275 859 416 167 1108 669 347 1756 1006 724 2169 762 884 293 316 806 210 319 850 208 2018 832 1552 526 . 1055 Optics 14278 | . . . . . . . . . . . . . 820 1005 724 2169 762 884 293 316 806 210 319 850 208 2018 832 1552 510 . . Sensors 10021 | . . . . . . . . . . . . . 197 885 724 1447 626 884 285 316 806 210 319 22 154 8 720 897 466 . 1055 Terrain 1 | . . . . . . . . . . . . . . 1 . . . . . . . . . . . . . . . . . Seismic 7305 | 144 750 . 426 522 844 275 571 . 100 1108 669 347 1441 . . . . . . . . . . . . . . . 108 . . Cloaking 274 | . . . . . . . . . . . . . . . . . . . . . 228 46 . . . . . . . . . Jamming 2023 | . . . . . . . 626 416 67 253 661 . . . . . . . . . . . . . . . . . . . . ECM 1 | . . . . . . . . . . . . . . . . . . . . . . . . . . . . . . . 1 Robot Analysis Total 7 | . 1 . 1 . . . . . . . . . . . . . . . 4 . . . . . . . . . . 1 . Derelict Logs Recovered 9 | . . . . 3 . . . . . . . . . . . . 2 3 . 1 . . . . . . . . . . . Drone Launches . | . . . . . . . . . . . . . . . . . . . . . . . . . . . . . . . . Drone Recoveries . | . . . . . . . . . . . . . . . . . . . . . . . . . . . . . . . . Exploration | -11 -10 -10 -9 -9 -9 -8 -8 -8 -8 -7 -7 -7 -6 -5 -5 -5 -5 -5 -5 -4 -4 -4 -4 -4 -4 -4 -3 -3 -2 -2 -1 ------------- Run | Yrd Mat Min Mat Min Exi Min Mat Gar Mat Fac Gar Fac Fac Fac Was Fac Upp Upp Zhi Pro Fac Was Fac Gar Fac Gar Res Tes Res Qua Acc Turns Passed 30973 | 239 1192 454 1016 572 844 275 1660 2135 1272 1127 2130 381 1797 1067 724 2193 762 884 293 316 806 210 319 850 208 2018 832 1552 804 317 1724 Spaces Moved 21945 | 134 595 210 373 305 437 152 876 1189 783 468 1337 255 1743 950 369 1044 430 506 279 466 1303 254 435 1132 445 1400 460 852 1155 506 1102 Core 1624 | 2 1 . . . . . . . . . . . 1146 439 . . . . . . . . . . . . . 36 . . . Treads 3171 | . . . . . . . . . . . . . . . 316 1044 430 506 101 . . . . . . . . 45 . . 729 Legs 9541 | 132 594 210 373 305 437 152 876 1189 783 468 1337 255 597 225 . . . . . . . . . . . 751 460 397 . . . Wheels . | . . . . . . . . . . . . . . . . . . . . . . . . . . . . . . . . Hover 4913 | . . . . . . . . . . . . . . . . . . . 178 466 1303 254 435 1132 445 649 . 51 . . . Flight 2696 | . . . . . . . . . . . . . . 286 53 . . . . . . . . . . . . 323 1155 506 373 Fastest Speed 23 | 50 120 190 180 175 175 175 112 120 107 176 101 105 50 35 35 160 160 160 40 40 31 38 38 23 38 41 113 35 31 34 34 Average Speed 100 | 118 136 190 187 175 175 175 119 123 128 181 121 110 77 74 142 160 160 160 85 40 38 38 38 41 38 96 116 92 33 40 110 Slowest Speed 1200 | 120 190 190 190 180 175 175 185 193 182 257 183 175 1200 118 160 160 160 160 240 40 92 38 38 94 96 260 118 350 39 114 152 Overloaded Moves 4 | . . . . . . . . . . . . . . . . . . . . . . . . 3 . 1 . . . . . Propulsion Burnouts . | . . . . . . . . . . . . . . . . . . . . . . . . . . . . . . . . Robots Hopped 32 | . . . . . . . . . . . . . . 5 . . . . . . . . . . . . . 7 13 7 . Potential Cave-ins 2 | . . . . . . . . . . . . . . . . . . 2 . . . . . . . . . . . . . Cave-ins Triggered . | . . . . . . . . . . . . . . . . . . . . . . . . . . . . . . . . Teleports 1 | . . . . . . . . . . . . . . . . . . . . . . . . . . . . . . . 1 Exploration Rate (%) 55 | 5 89 58 41 70 89 38 82 97 48 9 90 7 58 27 97 34 68 58 63 68 38 96 11 94 15 90 19 81 45 55 29 Regions Visited 31 Branch Regions 10 Pre-discovered Areas 8 | . . 1 . 2 1 . . . . . . . . . . . . 1 3 . . . . . . . . . . . . Known Exits Taken 15 | . . . 1 . . . 1 . . 1 . . 1 . . 1 1 1 1 1 . . 1 . 1 . 1 1 1 1 . Unknown Exits Taken 8 | 1 1 1 . 1 1 1 . . 1 . . 1 . . . . . . . . . . . . . . . . . . . Scrap Searched 6 | . . 1 . 1 . . . . . . . . . . . . 2 1 . 1 . . . . . . . . . . . Spaces Dug 266 | . 2 . 6 . . . 8 1 1 9 10 1 10 16 . 16 2 28 . 46 23 . 2 . 4 13 5 23 22 9 9 Terrain Destroyed 800 | . 2 13 25 . . . 26 17 1 31 16 43 51 21 1 54 8 29 . 56 27 2 2 8 4 45 13 143 22 10 130 Melee 179 | . 2 . 6 . . . 8 1 1 9 10 1 8 14 . 9 . . . 25 18 . 2 . 4 13 5 15 19 6 3 Projectile 307 | . . . . . . . 4 6 . . 6 4 24 7 1 45 8 29 . 31 9 2 . 8 . 9 8 37 3 4 62 AOE 314 | . . 13 19 . . . 14 10 . 22 . 38 19 . . . . . . . . . . . . 23 . 91 . . 65 Terrain Rammed . | . . . . . . . . . . . . . . . . . . . . . . . . . . . . . . . . Walls Destroyed . | . . . . . . . . . . . . . . . . . . . . . . . . . . . . . . . . Machines Disabled . | . . . . . . . . . . . . . . . . . . . . . . . . . . . . . . . . Actions | -11 -10 -10 -9 -9 -9 -8 -8 -8 -8 -7 -7 -7 -6 -5 -5 -5 -5 -5 -5 -4 -4 -4 -4 -4 -4 -4 -3 -3 -2 -2 -1 --------- Run | Yrd Mat Min Mat Min Exi Min Mat Gar Mat Fac Gar Fac Fac Fac Was Fac Upp Upp Zhi Pro Fac Was Fac Gar Fac Gar Res Tes Res Qua Acc Total 28115 | 168 844 242 595 331 512 161 1236 1628 978 693 1694 320 2044 1209 559 1350 473 529 326 511 1525 350 574 1395 467 1832 695 1415 1479 575 1405 Wait 2836 | . 129 14 134 16 . 10 115 68 134 182 133 40 101 109 158 128 22 1 . 1 106 70 114 120 . 73 121 326 258 34 119 Move 21857 | 133 594 209 372 304 436 151 876 1188 782 467 1335 254 1742 940 368 1043 429 505 278 465 1303 253 435 1130 444 1398 459 839 1131 493 1101 Hop 25 | . . . . . . . . . . . . . . 5 . . . . . . . . . . . . . 5 10 5 . Pick Up 234 | 2 16 4 7 1 2 . 24 15 5 3 21 . 12 11 2 11 2 . 4 . 13 4 3 7 3 20 16 17 . . 9 Fast Attach 286 | 7 7 . 2 1 . . 15 7 4 1 5 1 16 8 12 14 1 . 14 . 23 4 5 12 3 19 13 38 21 5 28 Attach 149 | . 2 . 6 . . . 11 7 . 3 12 . 22 14 . 2 2 . 3 . 1 . . 2 1 20 11 15 3 4 8 Detach 68 | . 2 . 1 . . . 2 . . . 1 . 14 8 . 1 . . 1 . 1 . . . . 6 3 11 4 6 7 Swap 261 | . 10 1 16 1 1 . 39 21 13 8 30 2 10 1 3 15 4 . 5 . 3 2 . 3 1 30 16 19 1 . 6 Drop 348 | . 12 2 7 2 3 . 37 19 10 1 20 1 19 11 10 17 . . 16 . 27 8 8 18 6 16 16 38 6 5 13 Fire 1151 | 26 69 12 42 6 3 . 109 91 28 19 50 20 88 52 . 103 13 23 5 20 15 8 5 37 . 100 30 63 3 7 104 Melee 468 | . 3 . 8 . . . 8 53 2 9 50 2 20 34 3 13 . . . 25 33 1 4 29 9 45 7 44 42 16 8 Ram 1 | . . . . . . . . . . . . . . 1 . . . . . . . . . . . . . . . . . Kick . | . . . . . . . . . . . . . . . . . . . . . . . . . . . . . . . . Crush 4 | . . . . . . . . . . . . . . . . 3 . . . . . . . . . . . . . . 1 Escape Stasis 185 | . . . . . . . . 7 . . 37 . . 15 . . . . . . . . . 37 . 86 3 . . . . Rewire 242 | . . . . . 67 . . 152 . . . . . . 3 . . . . . . . . . . 19 . . . . 1 Trap . | . . . . . . . . . . . . . . . . . . . . . . . . . . . . . . . . Miscellaneous . | . . . . . . . . . . . . . . . . . . . . . . . . . . . . . . . . Route ------- -11/Scrapyard -10/Materials (discovered 5 exits: *Mat x3 / [*Min] / [*Sub]) -10/Mines -9/Materials (discovered 3 exits: Mat / *Min x2) -9/Mines (discovered 2 exits: *Mat / *Exi) -9/Exiles -8/Mines -8/Materials (discovered 3 exits: *Fac / *Sto / Gar) -8/Garrison (discovered 3 exits: *Mat x3) -8/Materials (discovered 2 exits: *Fac / *Sto) -7/Factory -7/Garrison (discovered 3 exits: *Fac x3) -7/Factory -6/Factory (discovered 4 exits: *Fac x4) -5/Factory -5/Waste -5/Factory -5/Upper Caves -5/Upper Caves -5/Zhirov -4/Proximity Caves -4/Factory (discovered 4 exits: *Res x2 / *Upp / Arm) -4/Waste -4/Factory -4/Garrison (discovered 3 exits: *Fac x3) -4/Factory -4/Garrison (discovered 3 exits: *Res x3) -3/Research -3/Testing -2/Research (discovered 4 exits: *Acc x2 / *Qua x2) -2/Quarantine -1/Access (discovered 2 exits: *Sur / Com) To Epsilon Eridani History --------- Turn | Location | Event 4 | -11/Scrapyard | Discovered new exit (range 16) 240 | -11/Scrapyard | Entered Materials 317 | -10/Materials | Build established: Mutant 437 | -10/Materials | Lost 4 parts (1p2n1w) 647 | -10/Materials | Discovered new exit (range 16) 694 | -10/Materials | Build established: Scavenger-Mutant 829 | -10/Materials | Core integrity fell below 50% 861 | -10/Materials | Discovered new exit (range 11) 1121 | -10/Materials | Discovered new exit (range 11) 1322 | -10/Materials | Discovered new exit (range 11) 1352 | -10/Materials | Discovered new exit (range 8) 1432 | -10/Materials | Entered Mines 1445 | -10/Mines | Escorted by a lone wolf Derelict 1465 | -10/Mines | Learned location of Storage (-8) 1511 | -10/Mines | Found DCF Scrap (12 items) 1798 | -10/Mines | Core integrity fell below 20% 1809 | -10/Mines | Received a Rocket Launcher from a helpful Derelict 1861 | -10/Mines | Discovered new exit (range 14) 1885 | -10/Mines | Assembled infested the area 1886 | -10/Mines | Entered Materials 1886 | -9/Materials | Accompanied by 1 ally 1886 | -9/Materials | Evolved 2 slots: Propulsion x1, Weapon x1 2097 | -9/Materials | Discovered new exit (range 15) 2653 | -9/Materials | Discovered new exit (range 19) 2749 | -9/Materials | Discovered new exit (range 15) 2793 | -9/Materials | Identified exit to Mines 2902 | -9/Materials | Entered Mines 2918 | -9/Mines | Met a Derelict bent on vengeance 3003 | -9/Mines | Learned Materials trap positions 3007 | -9/Mines | Met a Derelict who couldn't figure out how to use a Trap Extractor 3057 | -9/Mines | Found a damaged Exp. Sensor Array with a note attached 3067 | -9/Mines | Learned location of Zion (-7) 3106 | -9/Mines | Discovered new exit (range 7) 3431 | -9/Mines | Found a hidden stash of uninstalled traps 3467 | -9/Mines | Deemed a non-threat by the Exiles lab entrance 3467 | -9/Mines | Discovered new exit (range 5) 3474 | -9/Mines | Entered Exiles 3474 | -9/Exiles | Found Exiles lab destroyed 3672 | -9/Exiles | Opened EX-Vault 3684 | -9/Exiles | Found AWS/Gauss 4294 | -9/Exiles | Discovered new exit (range 14) 4318 | -9/Exiles | Entered Mines 4318 | -8/Mines | Accompanied by 5 allies 4565 | -8/Mines | Discovered new exit (range 10) 4593 | -8/Mines | Entered Materials 4593 | -8/Materials | Accompanied by 5 allies 4593 | -8/Materials | Evolved 2 slots: Propulsion x1, Utility x1 4594 | -8/Materials | Loaded intel: 7 trap records 4664 | -8/Materials | Lost 5 allies 4997 | -8/Materials | Destroyed 12 combat bots 5126 | -8/Materials | Discovered new exit (range 16) 5152 | -8/Materials | Identified exit to Storage 5659 | -8/Materials | Lost 5 parts (1n2u2w) 5806 | -8/Materials | Build established: Gunner 6102 | -8/Materials | Garrison activated, responded to threat 6253 | -8/Materials | Identified exit to Garrison 6253 | -8/Materials | Entered Garrison 6272 | -8/Garrison | Core integrity fell below 50% 6333 | -8/Garrison | Triggered checkpoint 6378 | -8/Garrison | Garrison Relay disabled 6569 | -8/Garrison | Build established: Mutant 6583 | -8/Garrison | Garrison Relay disabled 6635 | -8/Garrison | Triggered checkpoint 6657 | -8/Garrison | Triggered checkpoint 6681 | -8/Garrison | Triggered checkpoint 6712 | -8/Garrison | Destroyed 9 combat bots 7049 | -8/Garrison | Triggered checkpoint 7063 | -8/Garrison | Triggered checkpoint 7083 | -8/Garrison | Lost 6 allies 7230 | -8/Garrison | Discovered new exit (range 11) 7287 | -8/Garrison | Triggered checkpoint 7314 | -8/Garrison | Garrison Relay disabled 7380 | -8/Garrison | Build established: Scavenger-Mutant 7418 | -8/Garrison | Triggered checkpoint 7477 | -8/Garrison | Triggered checkpoint 7721 | -8/Garrison | Triggered checkpoint 7767 | -8/Garrison | Discovered new exit (range 11) 7836 | -8/Garrison | Garrison Relay disabled 7917 | -8/Garrison | Triggered checkpoint 7983 | -8/Garrison | Garrison Relay disabled 8113 | -8/Garrison | Discovered new exit (range 5) 8388 | -8/Garrison | Entered Materials 8388 | -8/Materials | Accompanied by 2 allies 8576 | -8/Materials | Build established: Scavenger-Gunner 8792 | -8/Materials | Core integrity fell below 20% 8806 | -8/Materials | Discovered new exit (range 16) 8869 | -8/Materials | Discovered exit to Storage (range 8) 9660 | -8/Materials | Entered Factory 9660 | -7/Factory | Evolved 2 slots: Utility x2 10283 | -7/Factory | Build established: Scavenger-Tank 10356 | -7/Factory | Identified exit to Garrison 10409 | -7/Factory | Garrison activated, responded to threat 10787 | -7/Factory | Entered Garrison 10809 | -7/Garrison | Triggered checkpoint 10896 | -7/Garrison | Lost 3 parts (1p1n1w) 10951 | -7/Garrison | Triggered checkpoint 10959 | -7/Garrison | Garrison Relay disabled 11178 | -7/Garrison | Installed Relay Interface Framework 11186 | -7/Garrison | Build established: Scavenger-Mutant 11425 | -7/Garrison | Triggered checkpoint 11520 | -7/Garrison | Discovered new exit (range 13) 11616 | -7/Garrison | Triggered checkpoint 11653 | -7/Garrison | Garrison Relay disabled 11672 | -7/Garrison | Garrison Relay disabled 11719 | -7/Garrison | Triggered checkpoint 11773 | -7/Garrison | Triggered checkpoint 11829 | -7/Garrison | Discovered new exit (range 15) 11861 | -7/Garrison | Triggered checkpoint 11917 | -7/Garrison | Garrison Relay disabled 12154 | -7/Garrison | Triggered checkpoint 12242 | -7/Garrison | Discovered new exit (range 14) 12251 | -7/Garrison | Expanded RIF knowledge: Program Shield 12301 | -7/Garrison | Triggered checkpoint 12379 | -7/Garrison | Garrison Relay disabled 12617 | -7/Garrison | Triggered checkpoint 12620 | -7/Garrison | AWS/Gauss suddenly broke down 12652 | -7/Garrison | Garrison Relay disabled 12672 | -7/Garrison | Build established: Bothacker-Mutant 12917 | -7/Garrison | Entered Factory 13001 | -7/Factory | Discovered new exit (range 14) 13298 | -7/Factory | Entered another Factory area 13298 | -6/Factory | Accompanied by 1 ally 13298 | -6/Factory | Evolved 2 slots: Propulsion x1, Utility x1 14095 | -6/Factory | Lost 8 parts (6n1u1w) 14228 | -6/Factory | Lost 4 allies 14249 | -6/Factory | Lost 3 parts (1p1n1w) 14280 | -6/Factory | Discovered new exit (range 12) 14518 | -6/Factory | Build established: Mutant 14568 | -6/Factory | Discovered new exit (range 7) 14732 | -6/Factory | Discovered new exit (range 10) 14826 | -6/Factory | Discovered new exit (range 13) 14836 | -6/Factory | Identified exit to Factory 15041 | -6/Factory | Core integrity fell below 50% 15047 | -6/Factory | System corruption reached 10% 15048 | -6/Factory | First assault squad dispatched 15095 | -6/Factory | Entered another Factory area 15095 | -5/Factory | Evolved 2 slots: Power x1, Propulsion x1 15770 | -5/Factory | Lost 4 parts (1p2n1u) 15866 | -5/Factory | Garrison activated, responded to threat 15959 | -5/Factory | Spotted B-75 Beast 16162 | -5/Factory | Manually triggered Chute Trap 16162 | -5/Factory | Sucked down chute 16162 | -5/Factory | Entered Waste 16163 | -5/Waste | Joined by Warlord forces that had cleared the area 16249 | -5/Waste | Discovered new exit (range 14) 16312 | -5/Waste | A Compactor rumbled back to life 16312 | -5/Waste | Spotted C-40 Crusher 16317 | -5/Waste | Allies destroyed C-40 Crusher 16676 | -5/Waste | Build established: Scavenger-Assassin 16867 | -5/Waste | Identified exit to Factory 16886 | -5/Waste | Entered Factory 16886 | -5/Factory | Accompanied by 19 allies 17541 | -5/Factory | System corruption reached 10% 17553 | -5/Factory | Lost 5 allies 17574 | -5/Factory | Lost 3 parts (1p1u1w) 18047 | -5/Factory | Lost 5 allies 18490 | -5/Factory | Core integrity fell below 50% 18745 | -5/Factory | Central database locked down 18757 | -5/Factory | Discovered new exit (range 16) 18969 | -5/Factory | Garrison activated, responded to threat 19077 | -5/Factory | Identified exit to Upper Caves 19079 | -5/Factory | Entered Upper Caves 19134 | -5/Upper Caves | Encountered a Warlord checkpoint 19380 | -5/Upper Caves | Build established: Scavenger-Tank 19527 | -5/Upper Caves | Discovered new exit (range 11) 19734 | -5/Upper Caves | Learned Factory terminal intel 19840 | -5/Upper Caves | Identified exit to Upper Caves 19841 | -5/Upper Caves | Entered another Upper Caves area 20142 | -5/Upper Caves | Learned 4 Factory zone layouts 20275 | -5/Upper Caves | Encountered a Warlord checkpoint 20682 | -5/Upper Caves | Discovered new exit (range 7) 20704 | -5/Upper Caves | Learned Factory stockpile data 20722 | -5/Upper Caves | Identified exit to Zhirov 20725 | -5/Upper Caves | Entered Zhirov 20727 | -5/Zhirov | Discovered new exit (range 3) 20756 | -5/Zhirov | Met Zhirov 20804 | -5/Zhirov | Learned location of Quarantine (-2) 20804 | -5/Zhirov | Learned location of Testing (-3) 20804 | -5/Zhirov | Learned location of Command (-1) 20818 | -5/Zhirov | Zhirov requested help retrieving the SGEMP Prototype 20843 | -5/Zhirov | Found Alien Artifact 20843 | -5/Zhirov | Identified Integrated Dissipator 20843 | -5/Zhirov | Installed Integrated Dissipator, increased core heat dissipation (+20) 20865 | -5/Zhirov | Found Alien Artifact 21018 | -5/Zhirov | Identified exit to Proximity Caves 21018 | -5/Zhirov | Entered Proximity Caves 21026 | -4/Proximity Caves | Learned 8 Research zone layouts 21164 | -4/Proximity Caves | Spotted B-86 Titan 21191 | -4/Proximity Caves | Build established: Scavenger-Scout 21301 | -4/Proximity Caves | Discovered new exit (range 8) 21334 | -4/Proximity Caves | Identified exit to Factory 21334 | -4/Proximity Caves | Entered Factory 21334 | -4/Factory | Evolved 2 slots: Utility x2 21335 | -4/Factory | Identified exit to Armory 21338 | -4/Factory | Loaded intel: 28 terminal locations 21411 | -4/Factory | Discovered new exit (range 18) 21573 | -4/Factory | Spotted B-86 Titan 21658 | -4/Factory | Allied Derelicts emerged from ambush trap array 21690 | -4/Factory | Discovered new exit (range 5) 21691 | -4/Factory | Identified exit to Upper Caves 21906 | -4/Factory | Build established: Hacker-Ninja 22048 | -4/Factory | Found Unknown Device 22048 | -4/Factory | Identified Quantum Capacitor 22060 | -4/Factory | Discovered new exit (range 7) 22094 | -4/Factory | Identified exit to Research 22140 | -4/Factory | Sucked down chute 22140 | -4/Factory | Entered Waste 22143 | -4/Waste | Spotted C-40 Crusher 22145 | -4/Waste | Spotted C-40 Crusher 22153 | -4/Waste | Warlord forces began an assault 22160 | -4/Waste | Allies destroyed C-40 Crusher 22202 | -4/Waste | Spotted C-40 Crusher 22204 | -4/Waste | Allies destroyed C-40 Crusher 22210 | -4/Waste | Allies destroyed C-40 Crusher 22216 | -4/Waste | Spotted C-40 Crusher 22216 | -4/Waste | Spotted C-40 Crusher 22222 | -4/Waste | Allies destroyed C-40 Crusher 22224 | -4/Waste | Allies destroyed C-40 Crusher 22283 | -4/Waste | Allies destroyed C-40 Crusher 22289 | -4/Waste | Discovered new exit (range 22) 22317 | -4/Waste | Identified exit to Factory 22350 | -4/Waste | Entered Factory 22350 | -4/Factory | Accompanied by 15 allies 22489 | -4/Factory | Lost 3 allies 22539 | -4/Factory | Build established: Hacker-Scout 22568 | -4/Factory | Fabricated G-67 Veteran? 22657 | -4/Factory | Identified exit to Garrison 22669 | -4/Factory | Entered Garrison 22669 | -4/Garrison | Accompanied by 12 allies 22705 | -4/Garrison | Spotted B-86 Titan 22712 | -4/Garrison | Destroyed B-86 Titan 22725 | -4/Garrison | Spotted B-86 Titan 22750 | -4/Garrison | Destroyed B-86 Titan 22760 | -4/Garrison | Expanded RIF knowledge: Zone Cloak 22763 | -4/Garrison | Triggered checkpoint 22765 | -4/Garrison | Triggered checkpoint 22807 | -4/Garrison | Triggered checkpoint 22856 | -4/Garrison | Expanded RIF knowledge: Coupler Efficiency 22866 | -4/Garrison | Discovered new exit (range 3) 22866 | -4/Garrison | Identified exit to Factory 22882 | -4/Garrison | Garrison Relay disabled 22941 | -4/Garrison | Triggered checkpoint 22977 | -4/Garrison | Garrison Relay disabled 23063 | -4/Garrison | Triggered checkpoint 23081 | -4/Garrison | Triggered checkpoint 23152 | -4/Garrison | Garrison Relay disabled 23175 | -4/Garrison | H-XX Assembler disabled 23210 | -4/Garrison | Discovered exit to Factory (range 9) 23234 | -4/Garrison | Lost 4 allies 23284 | -4/Garrison | Garrison Relay disabled 23289 | -4/Garrison | Triggered checkpoint 23318 | -4/Garrison | Discovered exit to Factory (range 19) 23519 | -4/Garrison | Entered Factory 23519 | -4/Factory | Accompanied by 1 ally 23645 | -4/Factory | Garrison activated, responded to threat 23726 | -4/Factory | Identified exit to Garrison 23727 | -4/Factory | Entered Garrison 23819 | -4/Garrison | Triggered checkpoint 23921 | -4/Garrison | Lost 6 parts (1p2n2u1w) 24012 | -4/Garrison | Garrison Relay disabled 24102 | -4/Garrison | Spotted B-86 Titan 24107 | -4/Garrison | Assimilated Titan 7a with formatsys_high 24144 | -4/Garrison | Lost 3 allies 24159 | -4/Garrison | Lost 4 parts (1p1n1u1w) 24185 | -4/Garrison | System corruption reached 10% 24259 | -4/Garrison | Triggered checkpoint 24265 | -4/Garrison | Triggered checkpoint 24313 | -4/Garrison | Triggered checkpoint 24411 | -4/Garrison | Garrison Relay disabled 24438 | -4/Garrison | Discovered exit to Research (range 10) 24572 | -4/Garrison | Lost 4 allies 24587 | -4/Garrison | Lost 7 parts (2p1n2u2w) 24966 | -4/Garrison | Triggered checkpoint 24999 | -4/Garrison | Garrison Relay disabled 25040 | -4/Garrison | Discovered exit to Research (range 19) 25061 | -4/Garrison | Build established: Scavenger-Tank 25069 | -4/Garrison | Found embedded Infiltrators 25153 | -4/Garrison | Triggered checkpoint 25178 | -4/Garrison | Spotted B-86 Titan 25183 | -4/Garrison | Spotted B-75 Beast 25193 | -4/Garrison | Destroyed B-86 Titan 25197 | -4/Garrison | Core integrity fell below 50% 25210 | -4/Garrison | Allies destroyed B-75 Beast 25234 | -4/Garrison | Rewired B-86 Titan 25367 | -4/Garrison | Build established: Scavenger-Mutant 25376 | -4/Garrison | Garrison Relay disabled 25387 | -4/Garrison | Triggered checkpoint 25415 | -4/Garrison | Expanded RIF knowledge: Signal Jamming 25434 | -4/Garrison | Discovered exit to Research (range 3) 25745 | -4/Garrison | Entered Research 25745 | -3/Research | Accompanied by 1 ally 25745 | -3/Research | Evolved 2 slots: Utility x1, Weapon x1 25995 | -3/Research | First assault squad dispatched 26073 | -3/Research | Lost 4 allies 26101 | -3/Research | Lost 6 parts (2p1u3w) 26332 | -3/Research | Build established: Scavenger-Skirmisher 26452 | -3/Research | Spotted B-86 Titan 26480 | -3/Research | Discovered new exit (range 4) 26485 | -3/Research | Identified exit to Testing 26577 | -3/Research | Entered Testing 26656 | -3/Testing | Found Prototype Hackware 26734 | -3/Testing | Build established: Scavenger-Assassin 26877 | -3/Testing | Garrison activated, responded to threat 27028 | -3/Testing | Destroyed 7 combat bots 27066 | -3/Testing | Spotted PL-EEFF022BT5 27394 | -3/Testing | Spotted Striker 27403 | -3/Testing | Spotted Alpha 7 27413 | -3/Testing | Destroyed Striker 27418 | -3/Testing | Destroyed Alpha 7 27421 | -3/Testing | System corruption reached 10% 27490 | -3/Testing | Spotted Striker 27502 | -3/Testing | Lost 8 parts (2p2n2u2w) 27527 | -3/Testing | Destroyed Striker 27543 | -3/Testing | Identified System Mapper 27554 | -3/Testing | Lost 3 parts (1n2u) 27577 | -3/Testing | First assault squad dispatched 27646 | -3/Testing | Stole the SGEMP Prototype 27796 | -3/Testing | Destroyed PL-EEFF022BT5 27824 | -3/Testing | Lost 5 parts (1p1n2u1w) 28056 | -3/Testing | Found Prototype Processor 28056 | -3/Testing | Identified Exp. Signal Interpreter 28073 | -3/Testing | Watched by a mysterious "MATRIX" hacker 28104 | -3/Testing | Core integrity fell below 50% 28113 | -3/Testing | Discovered new exit (range 12) 28129 | -3/Testing | Identified exit to Research 28129 | -3/Testing | Entered Research 28129 | -2/Research | Evolved 2 slots: Propulsion x1, Utility x1 28158 | -2/Research | Lost 4 parts (1p1n2u) 28180 | -2/Research | Discovered new exit (range 19) 28191 | -2/Research | Identified exit to Access 28643 | -2/Research | Spotted B-90 Cyclops 28693 | -2/Research | Lost 8 parts (1p1n4u2w) 28796 | -2/Research | Identified exit to Quarantine 28814 | -2/Research | Discovered exit to Access (range 5) 28855 | -2/Research | Found Prototype Hackware 28855 | -2/Research | Identified Exp. System Shield 28879 | -2/Research | Search patrols dispatched 28889 | -2/Research | Spotted B-90 Cyclops 28933 | -2/Research | Entered Quarantine 28939 | -2/Quarantine | Spotted Alpha 7 29012 | -2/Quarantine | Found Alien Slashing Weapon 29012 | -2/Quarantine | Identified Sigix Broadsword 29120 | -2/Quarantine | Found Alien Artifact 29120 | -2/Quarantine | Identified Phase Redirector 29172 | -2/Quarantine | Build established: Hacker-Gladiator 29214 | -2/Quarantine | Discovered exit to Access (range 10) 29250 | -2/Quarantine | Entered Access 29250 | -1/Access | Evolved 2 slots: Propulsion x1, Utility x1 29251 | -1/Access | Delivered the SGEMP Prototype to Zhirov 29251 | -1/Access | Zhirov transferred Access data 29252 | -1/Access | Loaded intel: 133 machine locations 29252 | -1/Access | Loaded intel: 80 trap records 29252 | -1/Access | Identified exit to Surface 29252 | -1/Access | Discovered exit to Surface (range 200) 29252 | -1/Access | Identified exit to Command 29252 | -1/Access | Discovered exit to Command (range 96) 29392 | -1/Access | Found Fusion Bomb Launcher 29813 | -1/Access | Zhirov warped through subspace 29864 | -1/Access | Identified Transdimensional Reconstructor 29864 | -1/Access | Warped through subspace 29895 | -1/Access | Lost 4 parts (2u2w) 29905 | -1/Access | Garrison activated, responded to threat 29906 | -1/Access | Destroyed 14 combat bots 29910 | -1/Access | Build established: Hacker-Mutant 30078 | -1/Access | Lost 3 parts (1n2u) 30354 | -1/Access | System corruption reached 10% 30404 | -1/Access | Build established: Hacker-Tank 30640 | -1/Access | Destroyed 7 combat bots 30750 | -1/Access | First assault squad dispatched 30826 | -1/Access | Found Gamma Bomb Array 30974 | *** | Escaped! Last Messages --------------- 30960_ Chain reaction triggered in Corrupted Mic. Antimatter Reactor. 30960_ Sealed Barrier breached. 30961_ Penetrated by Slug. 30962_ Gamma Bomb Array destroyed. 30962_ Penetrated by Slug. 30962_ Adv. Heat Sink destroyed. 30964_ Penetrated by Slug. 30964_ Slug penetrates Main Access Shell. 30965_ Penetrated by Slug. 30965_ Mic. Antimatter Reactor destroyed. 30966_ Main Access Shell breached. 30967_ Slug penetrates Main Access Shell. 30967_ H-88 Terminator destroyed. 30968_ Critical hit (Destroy). 30968_ Lgt. Antimatter Reactor destroyed. 30968_ P-80 Master destroyed. 30971_ P-80 Master resets H-88 Terminator, system corruption cleaned. 30972_ Slug penetrates Main Access Shell. 30972_ Penetrated by Slug. [Achievement: True Cogmind] Map ----- +----------------------------------------------------+ | ### " ############ " | | ### ############ ######## | | ### ############ ######## | | ### ############ ######## | | #########+############# ######## ######## | | ####### ############ ######## ######## | | ######## # | | ####### ######## # | | ####### ############ ######## # | | ######## ############# ######## # | | ###### ########## ##### # | | ###### ########## ##### # | | ###### ########## ##### # | | ###### ########## #####+## # | | ###### ########## ### # #####+## | | ######## ########## ### + | | ########## ### # | | ##########""""""""""### # | | ####################""""""""""### + ^ | | ####################""""""""""### ##########^ ^ | | #############""""""""""### ##########] | | ############# ### ########## ^ | | ############# """ "" ### ########## | | "" ############# " " ######+########## | | F" ############## " "" " ###### ########## | | "" ############## " "@ " ######+########## | | ############## " " ### ####### ## | | ############## """ "" ### ####### ## | | # ##### ###"" ####### ## | | # ##### ###"" ####### ## | | # " ####""" """"##"" ####### # | | # """ #####" ###T ####### + | | # """ #####" ###"" ####### # | | # " #####" ###"" ####### # | | #### + #####T = ###"" ####### # | | #### # #####""%*! ### ####### # | | #### # #####""h%[ ### ####### # | | #### ##############"!!pg #####+########## | | #### ^^ ! g | | #### ^^ | | ##############+####################+#+######## | | # ################ ######## | | # ################ ######## | | # """""" ################ ######## | | # """""" ################ ######## | | # """""" ################ " ######## | | # """""" ################ """ ######## | | # """""" ################ """ ######## | | # ################ " ######## | | # ################################# | +----------------------------------------------------+ Best States ------------- Heat Dissipation 129 Energy Generation 55 Energy Capacity 885 Matter Stores 300 Matter Capacity 300 Sight Range 22 Robot Scan Range 18 Terrain Scan Density 10 Jamming Range 14 Cloak Strength 2 Corruption Block 15 Armor Coverage 2400 Power Shielding 90 Phase Shifting 10 Evasion (%) 73 Targeting Accuracy 8 Melee Accuracy 16 Launcher Accuracy 40 Core Analysis 6 Recoil Reduction 8 Energy Filtering 50 Offensive Hacking 30 Defensive Hacking 28 Relay Coupler Types 2 Relay Coupler Value 70 Item Schematics ----------------- Arm. Leg | -5/Factory | Scanalyzed Assault Drone Bay | -5/Zhirov | Free Exp. Heat Sink | -5/Zhirov | Free Exp. Optical Array | -5/Zhirov | Free Imp. Arc Thrower | -5/Zhirov | Free Spectral Analyzer | -3/Testing | Archive Robot Schematics ------------------ A-15 Conveyor | -3/Testing | Archive Fabricated ------------ G-67 Veteran | x3 | -4/Factory | Preloaded Repaired ---------- Nothing Studied --------- Aluminum Leg | -9/Materials | Hacked Hvy. Assault Rifle | -9/Materials | Hacked Hvy. Assault Cannon | -8/Materials | Hacked Lgt. Nuclear Core | -8/Materials | Hacked Scythe | -8/Materials | Hacked Carbon-fiber Leg | -8/Materials | Hacked Imp. Carbon-fiber Leg | -6/Factory | Hacked Arm. Leg | -5/Factory | Hacked Hvy. Treads | -5/Factory | Hacked Mic. Fission Core | -4/Factory | Hacked Impulse Thruster Array | -3/Testing | Hacked Alien Tech Used ----------------- Integrated Dissipator Sigix Broadsword Phase Redirector Transdimensional Reconstructor Achievements -------------- Luggage Code True Cogmind Challenges ------------ None Game ------ Seed BurstMyomerShotgun Manual? 0 Play Time 07:10:17 Cumulative 496.1 hours Start 2026.06.25 @ 06:40:10 End 2026.06.29 @ 22:57:30 Sessions 9 Manual Loads 0 Difficulty Rogue Special Mode None Game No. 180 Rogue 159 Adventurer 21 Explorer 0 Win Type 0 Total 25 Types 15/1/5/1/0/0/0/2/0/1 Lore% 68 Gallery% 74 Achievement% 65 Wizard Run 0 Options --------- Layout 1 ASCII 0 Keyboard 0 Movement Mouse Keybinds 0 Fullscreen 2 Font 32/SmallcapsGlow Map View 77x35 Zoom Use 0% Tactical HUD 1 Map Filters NONE Filters NONE Steam 1 RUN: d68d671b-adb4-4c6f-8b2f-d0670f3cfd22